{"text_format":"1","workbook":"xlsx","n_sheets":11,"sheets":["P","BSL","BAKTERI","MANTAR","PARAZIT","RIKETSIYA","VIRUS","PRION","TOKSIN","A","B"],"not_rendered":{"charts":0,"images":1,"macros":1,"external_links":0,"defined_names":9,"comments":0,"pivot_tables":0},"unopened":[],"bounds":{"document_bytes":16777216,"sheet_cells":100000,"rows_first":2000,"rows_last":500,"rows_between":2000,"halvings":0,"cell_chars":16384,"cell_head_chars":4096},"cells_cut":0,"cells_raw":0,"read":"whole","date_system":"1900"}

{"sheet":"P","index":0,"n_rows":1002,"n_cols":7,"rows_kept":1002,"cut":false,"hidden":true,"merged":[]}
["Virüs",5,"Abras",2,null,null,"Virüs"]
["Virüs",5,"Absettarov",4,null,"EXHAUST HEPA REQUIRED","Virüs"]
["Mantar",2,"Absidia spp.",2,null,"TMC","Mantar"]
["Virüs",5,"Abu Hammad",2,null,null,"Virüs"]
["Virüs",5,"Acado",2,null,null,"Virüs"]
["Parazit",3,"Acanthocheilonema spp.",2,null,"TMC","Parazit"]
["Parazit",3,"Acanthomoeba spp.",2,null,"TMC","Parazit"]
["Virüs",5,"Acara",2,null,null,"Virüs"]
["Bakteri ",1,"Acinetobacter calcoaeticus",2,null,"TMC","Bakteri "]
["Bakteri ",1,"Acinetobacter lwolfi",2,null,"TMC","Bakteri "]
["Bakteri ",1,"Actinetobacter calceticus",2,2,null,"Bakteri "]
["Bakteri ",1,"Actinobacillus spp.",2,2,null,"Bakteri "]
["Bakteri ",1,"Actinomyces spp.",2,2,null,"Bakteri "]
["Virüs",5,"Adelaide River",2,null,null,"Virüs"]
["Virüs",5,"Adenoviruses",2,2,null,"Virüs"]
["Virüs",5,"Adenoviruses - animal - all",2,2,null,"Virüs"]
["Bakteri ",1,"Aeromaonas hydrophilia",2,null,"TMC","Bakteri "]
["Bakteri ",1,"Aeromaonas sp.",2,2,null,"Bakteri "]
["Virüs",5,"African Horsesickness","3c",null,"EXHAUST HEPA REQUIRED","Virüs"]
["Virüs",5,"African Swine Fever","3c",null,"EXHAUST HEPA REQUIRED","Virüs"]
["Virüs",5,"Aguacate",2,null,null,"Virüs"]
["Virüs",5,"Aino",2,null,null,"Virüs"]
["Virüs",5,"Akabane ","3c",null,"EXHAUST HEPA REQUIRED","Virüs"]
["Virüs",5,"Alenquer ",2,null,null,"Virüs"]
["Virüs",5,"Aleutian Disease Virus",2,2,null,"Virüs"]
["Virüs",5,"Alfuy",2,null,null,"Virüs"]
["Virüs",5,"Alkhumra",4,null,"EXHAUST HEPA REQUIRED","Virüs"]
["Virüs",5,"Allpahuayo",3,null,null,"Virüs"]
["Virüs",5,"Almeirim",2,null,null,"Virüs"]
["Virüs",5,"Almpiwar",2,null,null,"Virüs"]
["Virüs",5,"Altamira",2,null,null,"Virüs"]
["Virüs",5,"Amapari ",2,null,null,"Virüs"]
["Virüs",5,"Ambe",2,null,null,"Virüs"]
["Virüs",5,"Ananindeua",2,null,null,"Virüs"]
["Parazit",3,"Anaplasma spp.",2,2,null,"Parazit"]
["Parazit",3,"Ancylostoma braziliense",2,2,"BSC","Parazit"]
["Parazit",3,"Ancylostoma caninum",2,2,"BSC","Parazit"]
["Parazit",3,"Ancylostoma spp.",2,2,"BSC","Parazit"]
["Virüs",5,"Andasibe",2,null,null,"Virüs"]
["Virüs",5,"Andes","3a",null,null,"Virüs"]
["Parazit",3,"Angiostrongylus spp.",2,null,"TMC","Parazit"]
["Virüs",5,"Anhanga",2,null,null,"Virüs"]
["Virüs",5,"Anhembi",2,null,null,"Virüs"]
["Virüs",5,"Anopheles A",2,null,null,"Virüs"]
["Virüs",5,"Anopheles B",2,null,null,"Virüs"]
["Virüs",5,"Antequera",2,null,null,"Virüs"]
["Virüs",5,"Apeu",2,null,null,"Virüs"]
["Virüs",5,"Apoi",2,null,null,"Virüs"]
["Bakteri ",1,"Arachnida propionica",2,2,null,"Bakteri "]
["Virüs",5,"Araguari",3,null,null,"Virüs"]
["Virüs",5,"Aransas",2,null,null,"Virüs"]
["Virüs",5,"Arbia",2,null,null,"Virüs"]
["Virüs",5,"Arboledas",2,null,null,"Virüs"]
["Virüs",5,"Arboviruses - certain",2,2,"BMBL","Virüs"]
["Virüs",5,"Arboviruses - certain",3,3,"BMBL","Virüs"]
["Virüs",5,"Arboviruses - certain",4,4,"BMBL","Virüs"]
["Virüs",5,"Arenaviruses - certain",3,3,"BMBL","Virüs"]
["Virüs",5,"Arenaviruses - certain",4,4,"BMBL","Virüs"]
["Virüs",5,"Arenaviruses - LCM Virus","2-3",null,"TMC","Virüs"]
["Virüs",5,"Aride",2,null,null,"Virüs"]
["Virüs",5,"Ariquemes",2,null,null,"Virüs"]
["Virüs",5,"Arkonam",2,null,null,"Virüs"]
["Virüs",5,"Armero",2,null,null,"Virüs"]
["Virüs",5,"Aroa",2,null,null,"Virüs"]
["Virüs",5,"Aruac",2,null,null,"Virüs"]
["Virüs",5,"Arumateua",2,null,null,"Virüs"]
["Virüs",5,"Arumowot",2,null,null,"Virüs"]
["Parazit",3,"Ascaris lumbricoides",2,2,"BSC","Parazit"]
["Parazit",3,"Ascaris spp.",2,2,"BMBL","Parazit"]
["Mantar",2,"Aspergillus spp.",2,null,"TMC","Mantar"]
["Virüs",5,"Aura",2,null,null,"Virüs"]
["Virüs",5,"Avalon",2,null,null,"Virüs"]
["Virüs",5,"Avian Erthyroblastosis Virus",2,2,null,"Virüs"]
["Virüs",5,"Avian Leucosis Virus",2,2,null,"Virüs"]
["Virüs",5,"Avian Lymphomatosis Virus",2,2,null,"Virüs"]
["Virüs",5,"Avian Myeloblasotosos Virus",2,2,null,"Virüs"]
["Virüs",5,"Babahoyo",2,null,null,"Virüs"]
["Virüs",5,"Babanki",2,null,null,"Virüs"]
["Parazit",3,"Babesia microti",2,2,"BSC","Parazit"]
["Parazit",3,"Babesia spp.",2,null,"TMC","Parazit"]
["Bakteri ",1,"Bacillus alvei",2,2,null,"Bakteri "]
["Bakteri ",1,"Bacillus anthracis*","2-3",2,"BMBL, vaccination recommended","Bakteri "]
["Bakteri ",1,"Bacillus cereus",1,null,"TMC","Bakteri "]
["Bakteri ",1,"Bacillus subtilis",2,null,"TMC","Bakteri "]
["Bakteri ",1,"Bacteroides spp.",2,2,null,"Bakteri "]
["Virüs",5,"Bagaza",2,null,null,"Virüs"]
["Virüs",5,"Bahig",2,null,null,"Virüs"]
["Virüs",5,"Bakau",2,null,null,"Virüs"]
["Virüs",5,"Baku",2,null,null,"Virüs"]
["Parazit",3,"Balantidium spp.",2,null,"TMC","Parazit"]
["Virüs",5,"Bandia",2,null,null,"Virüs"]
["Virüs",5,"Bangoran ",2,null,null,"Virüs"]
["Virüs",5,"Bangui",2,null,null,"Virüs"]
["Virüs",5,"Banzi",2,null,null,"Virüs"]
["Virüs",5,"Barmah",2,null,null,"Virüs"]
["Virüs",5,"Barranqueras",2,null,null,"Virüs"]
["Bakteri ",1,"Bartonella bacilliformis",2,null,"TMC","Bakteri "]
["Bakteri ",1,"Bartonella sp.",3,3,null,"Bakteri "]
["Virüs",5,"Barur",2,null,null,"Virüs"]
["Virüs",5,"Batai ",2,null,null,"Virüs"]
["Virüs",5,"Batama",2,null,null,"Virüs"]
["Virüs",5,"Batken ",2,null,null,"Virüs"]
["Virüs",5,"Bauline",2,null,null,"Virüs"]
["Virüs",5,"Bear Canyon",3,null,null,"Virüs"]
["Virüs",5,"Bebaru ",2,null,null,"Virüs"]
["Virüs",5,"Belem",2,null,null,"Virüs"]
["Virüs",5,"Belmont",2,null,null,"Virüs"]
["Virüs",5,"Belterra ",2,null,null,"Virüs"]
["Virüs",5,"Benevides",2,null,null,"Virüs"]
["Virüs",5,"Benfica ",2,null,null,"Virüs"]
["Virüs",5,"Beritoga",2,null,null,"Virüs"]
["Virüs",5,"Bermejo",3,null,null,"Virüs"]
["Virüs",5,"Berrimah",2,null,null,"Virüs"]
["Virüs",5,"Bhanja",3,null,null,"Virüs"]
["Virüs",5,"Bimbo",2,null,null,"Virüs"]
["Virüs",5,"Bimitti",2,null,null,"Virüs"]
["Virüs",5,"Birao ",2,null,null,"Virüs"]
["Virüs",5,"BK Virüs","2-3",null,"TMC","Virüs"]
["Mantar",2,"Blastomyces dermatitides","2-3",2,"BMBL","Mantar"]
["Virüs",5,"Bluetoungue (exotic serotypes)","3c",null,null,"Virüs"]
["Virüs",5,"Bluetoungue (non-exotic)","2c",null,null,"Virüs"]
["Virüs",5,"Bobaya",2,null,null,"Virüs"]
["Virüs",5,"Bobia",2,null,null,"Virüs"]
["Virüs",5,"Boraceia",2,null,null,"Virüs"]
["Bakteri ",1,"Bordetella bronchiseptica",2,null,"TMC","Bakteri "]
["Bakteri ",1,"Bordetella pertussis","2-3","2","BMBL","Bakteri "]
["Bakteri ",1,"Bordetella sp.",2,2,null,"Bakteri "]
["Bakteri ",1,"Borrelia sp.",2,2,null,"Bakteri "]
["Virüs",5,"Botambi ",2,null,null,"Virüs"]
["Virüs",5,"Boteke ",2,null,null,"Virüs"]
["Virüs",5,"Bouboui ",2,null,null,"Virüs"]
["Virüs",5,"Bovine Encephalomyelitis Virus",2,2,null,"Virüs"]
["Virüs",5,"Bovine Ephemeral Fever ","3c",null,null,"Virüs"]
["Virüs",5,"Bovine Leukemia Virus",2,2,null,"Virüs"]
["Virüs",5,"Bovine Respiratory Syncytial Virus",2,2,null,"Virüs"]
["Virüs",5,"Bovine Rhinotracheitis (IBR)",2,2,null,"Virüs"]
["Virüs",5,"Bozo",2,null,null,"Virüs"]
["Virüs",5,"Breu Branco",2,null,null,"Virüs"]
["Bakteri ",1,"Brucella abortus","2-3",3,"BMBL","Bakteri "]
["Bakteri ",1,"Brucella melitensis","2-3",3,"BMBL","Bakteri "]
["Bakteri ",1,"Brucella sp.*","2-3",3,"BMBL","Bakteri "]
["Bakteri ",1,"Brucella suis","2-3",3,"BMBL","Bakteri "]
["Parazit",3,"Brugia spp.",2,null,"TMC","Parazit"]
["Virüs",5,"Buenaventura",2,null,null,"Virüs"]
["Virüs",5,"Bujaru",2,null,null,"Virüs"]
["Virüs",5,"Bunyamwera",2,null,null,"Virüs"]
["Virüs",5,"Bunyip Creek",2,null,null,"Virüs"]
["Virüs",5,"Burg El Arab",2,null,null,"Virüs"]
["Bakteri ",1,"Burkholderia mallei","2-3",3,null,"Bakteri "]
["Bakteri ",1,"Burkholderia pseudomallei","2-3",3,null,"Bakteri "]
["Virüs",5,"Bushbush",2,null,null,"Virüs"]
["Virüs",5,"Bussuquara",2,null,null,"Virüs"]
["Virüs",5,"Buttonwillow",2,null,null,"Virüs"]
["Virüs",5,"Bwamba ",2,null,null,"Virüs"]
["Virüs",5,"Cabassou",3,null,"EXHAUST HEPA REQUIRED","Virüs"]
["Virüs",5,"Cacao",2,null,null,"Virüs"]
["Virüs",5,"Cache Valley",2,null,null,"Virüs"]
["Virüs",5,"Cache Valley Virus",2,2,"BMBL","Virüs"]
["Virüs",5,"Cacipacore",2,null,null,"Virüs"]
["Virüs",5,"Caimito",2,null,null,"Virüs"]
["Virüs",5,"Calchaqui",2,null,null,"Virüs"]
["Virüs",5,"California",2,null,null,"Virüs"]
["Virüs",5,"Calovo",2,null,null,"Virüs"]
["Bakteri ",1,"Camplobacter coli",2,2,"BMBL","Bakteri "]
["Bakteri ",1,"Camplobacter sp.",2,2,null,"Bakteri "]
["Bakteri ",1,"Camplobacter upsaliensis",2,2,"BMBL","Bakteri "]
["Bakteri ",1,"Campylobacter fetus sunsp. Fetus",2,2,"BMBL","Bakteri "]
["Bakteri ",1,"Campylobacter fetus var. jejuni",2,2,"BMBL","Bakteri "]
["Virüs",5,"Cananeia",2,null,null,"Virüs"]
["Mantar",2,"Candida albicans",2,2,null,"Mantar"]
["Mantar",2,"Candida spp.",2,null,"TMC","Mantar"]
["Virüs",5,"Candiru",2,null,null,"Virüs"]
["Virüs",5,"Caninde",2,null,null,"Virüs"]
["Virüs",5,"Canine Distemper Virus",2,2,null,"Virüs"]
["Virüs",5,"Canine Hepatitis Virus",2,2,null,"Virüs"]
["Virüs",5,"Cano Delgadito","3a",null,null,"Virüs"]
["Virüs",5,"Cape Wrath",2,null,null,"Virüs"]
["Parazit",3,"Capillaria spp.",2,null,"TMC","Parazit"]
["Virüs",5,"Capim",2,null,null,"Virüs"]
["Virüs",5,"Caprine Arthritis",2,2,null,"Virüs"]
["Virüs",5,"Caraipe ",2,null,null,"Virüs"]
["Virüs",5,"Carajas",2,null,null,"Virüs"]
["Virüs",5,"Caraparu",2,null,null,"Virüs"]
["Virüs",5,"Carey Island",2,null,null,"Virüs"]
["Virüs",5,"Catu",2,null,null,"Virüs"]
["Parazit",3,"Cestode Parasites",2,2,"BMBL","Parazit"]
["Virüs",5,"Chaco",2,null,null,"Virüs"]
["Virüs",5,"Chagres",2,null,null,"Virüs"]
["Virüs",5,"Chandipura",2,null,null,"Virüs"]
["Virüs",5,"Changuinola ",2,null,null,"Virüs"]
["Virüs",5,"Charleville",2,null,null,"Virüs"]
["Virüs",5,"Chenuda",2,null,null,"Virüs"]
["Virüs",5,"Chikungunya ",3,null,"EXHAUST HEPA REQUIRED","Virüs"]
["Virüs",5,"Chilibre",2,null,null,"Virüs"]
["Virüs",5,"Chim",2,null,null,"Virüs"]
["Bakteri ",1,"Chlamydia pneumoniae","2-3",3,"BMBL","Bakteri "]
["Bakteri ",1,"Chlamydia psittaci","2-3",3,"BMBL","Bakteri "]
["Bakteri ",1,"Chlamydia spp.","2-3",null,"TMC","Bakteri "]
["Bakteri ",1,"Chlamydia trachomatis","2-3",3,"BMBL","Bakteri "]
["Virüs",5,"Chobar Gorge",2,null,null,"Virüs"]
["Virüs",5,"Clo Mor ",2,null,null,"Virüs"]
["Parazit",3,"Clonorchis spp.",2,null,"TMC","Parazit"]
["Bakteri ",1,"Clostridium baratii","2-3",2,"BMBL","Bakteri "]
["Bakteri ",1,"Clostridium botulinum*","2-3",2,"BMBL","Bakteri "]
["Bakteri ",1,"Clostridium butyricum","2-3",2,"BMBL","Bakteri "]
["Bakteri ",1,"Clostridium chauvoei","2-3",null,"TMC","Bakteri "]
["Bakteri ",1,"Clostridium difficile","2",null,"TMC","Bakteri "]
["Bakteri ",1,"Clostridium sordellii","2",null,"TMC","Bakteri "]
["Bakteri ",1,"Clostridium spp.","2-3",null,"TMC","Bakteri "]
["Bakteri ",1,"Clostridium tetani",2,2,"BMBL","Bakteri "]
["Virüs",5,"Coastal Plains",2,null,null,"Virüs"]
["Virüs",5,"Cocal ",2,null,null,"Virüs"]
["Parazit",3,"Coccidia sp.",2,2,"BMBL","Parazit"]
["Mantar",2,"Coccidioides immitis*","2-3",2,"BMBL","Mantar"]
["Mantar",2,"Coccidioides posadasii *","2-3",2,"BMBL","Mantar"]
["Virüs",5,"Codajas ",2,null,null,"Virüs"]
["Virüs",5,"Colorado",2,null,null,"Virüs"]
["Virüs",5,"Congo-Crimean Hemorrhagic Fever",4,null,"EXHAUST HEPA REQUIRED","Virüs"]
["Virüs",5,"Connecticut",2,null,null,"Virüs"]
["Virüs",5,"Corfou ",2,null,null,"Virüs"]
["Virüs",5,"Coronavirus ","2-3",3,null,"Virüs"]
["Virüs",5,"Corriparta",2,null,null,"Virüs"]
["Bakteri ",1,"Corynebacterium diphtheriae",2,2,"BMBL","Bakteri "]
["Bakteri ",1,"Corynebacterium equi",2,2,null,"Bakteri "]
["Bakteri ",1,"Corynebacterium haemolyticum",2,2,null,"Bakteri "]
["Bakteri ",1,"Corynebacterium pseudotuberculosis",2,2,null,"Bakteri "]
["Bakteri ",1,"Corynebacterium pysogenes",2,2,null,"Bakteri "]
["Bakteri ",1,"Corynebacterium renale",2,2,null,"Bakteri "]
["Bakteri ",1,"Corynebacterium spp.","2-3",null,"TMC","Bakteri "]
["Virüs",5,"Cotia",2,null,null,"Virüs"]
["Virüs",5,"Cowbone Ridge",2,null,null,"Virüs"]
["Virüs",5,"Cowpox","2-3",null,"TMC","Virüs"]
["Riketsiya",4,"Coxiella burnetii","2-3",2,null,"Riketsiya"]
["Virüs",5,"Coxsackie A & B Viruses",2,2,null,"Virüs"]
["Virüs",5,"Creutzfeldt - Jacob Ajanı",2,null,"BMBL","Virüs"]
["Mantar",2,"Cryptococcus neoformans",2,2,"CLASS II BSC","Mantar"]
["Parazit",3,"Cryptosporidia sp.",2,2,"BMBL","Parazit"]
["Parazit",3,"Cryptosporidium hominis",2,2,"BSC","Parazit"]
["Parazit",3,"Cryptosporidium oocysts",2,2,"BSC","Parazit"]
["Parazit",3,"Cryptosporidium parvum",2,2,"BSC","Parazit"]
["Virüs",5,"Csiro",2,null,null,"Virüs"]
["Virüs",5,"Cuiaba",2,null,null,"Virüs"]
["Virüs",5,"Curionopolis",2,null,null,"Virüs"]
["Parazit",3,"Cysticercus cellulosae",2,2,"BSC","Parazit"]
["Parazit",3,"Cysticercus spp.",2,null,"TMC","Parazit"]
["Virüs",5,"Cytomegaloviruses",2,2,null,"Virüs"]
["Virüs",5,"D’Aguilar",2,null,null,"Virüs"]
["Virüs",5,"Dabakala ",2,null,null,"Virüs"]
["Virüs",5,"Dakar Bat Virus",2,null,null,"Virüs"]
["Virüs",5,"Deer Tick Virus",3,null,null,"Virüs"]
["Virüs",5,"Dengue Virus",2,3,"BMBL","Virüs"]
["Virüs",5,"Dengue Virus Type 1",2,null,null,"Virüs"]
["Virüs",5,"Dengue Virus Type 2",2,null,null,"Virüs"]
["Virüs",5,"Dengue Virus Type 3",2,null,null,"Virüs"]
["Virüs",5,"Dengue Virus Type 4",2,null,null,"Virüs"]
["Virüs",5,"Dera Ghazi Khan",2,null,null,"Virüs"]
["Mantar",2,"Dermatophilus congolensis",2,null,"TMC","Mantar"]
["Mantar",2,"Dermatophytes Epidermophyton",2,2,"CLASS II BSC","Mantar"]
["Mantar",2,"Dermatophytes Microsporum",2,2,"CLASS II BSC","Mantar"]
["Mantar",2,"Dermatophytes Trichophyton",2,2,"CLASS II BSC","Mantar"]
["Virüs",5,"Dhori",2,null,null,"Virüs"]
["Parazit",3,"Dicrocoelium spp.",2,null,"TMC","Parazit"]
["Parazit",3,"Dipetalonema spp.",2,null,"TMC","Parazit"]
["Parazit",3,"Diphyllobothrium spp.",2,null,"TMC","Parazit"]
["Parazit",3,"Dipylidium spp.",2,null,"TMC","Parazit"]
["Virüs",5,"Dobrava-Belgrade","3a",null,null,"Virüs"]
["Virüs",5,"Douglas",3,null,null,"Virüs"]
["Parazit",3,"Dracunculus spp.",2,null,"TMC","Parazit"]
["Virüs",5,"Dugbe",3,null,null,"Virüs"]
["Virüs",5,"Durania",2,null,null,"Virüs"]
["Virüs",5,"Eastern Equine Encephalitis","3c",null,null,"Virüs"]
["Virüs",5,"Ebola (Including Reston)",4,null,"EXHAUST HEPA REQUIRED","Virüs"]
["Parazit",3,"Echinococcus granulosus",2,2,"BMBL","Parazit"]
["Parazit",3,"Echinococcus multilocularis",2,2,"BMBL","Parazit"]
["Parazit",3,"Echinococcus oligarthrus",2,2,"BMBL","Parazit"]
["Parazit",3,"Echinococcus spp.",2,null,"TMC","Parazit"]
["Parazit",3,"Echinococcus vogeli",2,2,"BMBL","Parazit"]
["Virüs",5,"Echovirus",2,2,null,"Virüs"]
["Virüs",5,"Edge Hill",2,null,null,"Virüs"]
["Bakteri ",1,"Edwardsiella tarda",2,null,"TMC","Bakteri "]
["Parazit",3,"Ehrlichia sp.",2,2,null,"Parazit"]
["Virüs",5,"Encephalomyelitis Virus*",2,2,null,"Virüs"]
["Virüs",5,"Encephalomyocarditis Virus",2,2,null,"Virüs"]
["Virüs",5,"Enseada",3,null,null,"Virüs"]
["Parazit",3,"Entamoeba histolytica",2,2,"BMBL","Parazit"]
["Parazit",3,"Entamoeba sp.",2,2,"BMBL","Parazit"]
["Virüs",5,"Entebbe Bat",2,null,null,"Virüs"]
["Bakteri ",1,"Enterobacter aerogenes",2,null,"TMC","Bakteri "]
["Bakteri ",1,"Enterobacteriaceae all other",2,2,null,"Bakteri "]
["Parazit",3,"Enterobius sp.",2,2,"BMBL","Parazit"]
["Parazit",3,"Enterobius vermicularis",2,2,"BSC","Parazit"]
["Virüs",5,"Epidemic Diarrhea Infant Mice",2,2,null,"Virüs"]
["Mantar",2,"Epidermophyton - pathogenic spp.",2,2,"BMBL","Mantar"]
["Virüs",5,"Epizootic Hemorrhagic Disease",2,null,null,"Virüs"]
["Virüs",5,"Epstein-Barr Virus",2,2,null,"Virüs"]
["Virüs",5,"Erve",2,null,null,"Virüs"]
["Bakteri ",1,"Erysipelothrix rhusiopathiae",2,2,null,"Bakteri "]
["Bakteri ",1,"Escherichia coli",2,2,null,"Bakteri "]
["Bakteri ",1,"Escherichia coli K12 derivative",1,1,null,"Bakteri "]
["Virüs",5,"Estero Real",2,null,null,"Virüs"]
["Virüs",5,"Eubenangee",2,null,null,"Virüs"]
["Virüs",5,"Everglades",3,null,"EXHAUST HEPA REQUIRED","Virüs"]
["Virüs",5,"Eyach",2,null,null,"Virüs"]
["Virüs",5,"Farmington",2,null,null,"Virüs"]
["Parazit",3,"Fasciola hepatica",2,2,"BMBL","Parazit"]
["Parazit",3,"Fasciola spp.",2,2,"BMBL","Parazit"]
["Parazit",3,"Fasciolopsis spp.",2,null,"TMC","Parazit"]
["Virüs",5,"Feline Leukemia Virus",2,2,null,"Virüs"]
["Virüs",5,"Feline Sarcoma Virus",2,2,null,"Virüs"]
["Virüs",5,"Filoviruses",2,2,null,"Virüs"]
["Virüs",5,"Flanders",2,null,null,"Virüs"]
["Virüs",5,"Flanders Virus",2,2,"BMBL","Virüs"]
["Virüs",5,"Flexal",3,null,null,"Virüs"]
["Virüs",5,"Fomede",2,null,null,"Virüs"]
["Virüs",5,"Forecariah",2,null,null,"Virüs"]
["Virüs",5,"Fort Morgan",2,null,null,"Virüs"]
["Virüs",5,"Fort Sherman",2,null,null,"Virüs"]
["Bakteri ",1,"Francisella novicida","2",null,"TMC","Bakteri "]
["Bakteri ",1,"Francisella tularensis*","2-3",3,"BMBL","Bakteri "]
["Virüs",5,"Frijoles ",2,null,null,"Virüs"]
["Bakteri ",1,"Fusobacterium necrophorum","2-3",null,"TMC","Bakteri "]
["Bakteri ",1,"Fusobacterium sp.",2,2,null,"Bakteri "]
["Virüs",5,"Gabek Forest",2,null,null,"Virüs"]
["Virüs",5,"Gadgets Gully",2,null,null,"Virüs"]
["Virüs",5,"Gamboa",2,null,null,"Virüs"]
["Virüs",5,"Gan Gan",2,null,null,"Virüs"]
["Virüs",5,"Garba",2,null,null,"Virüs"]
["Virüs",5,"Garissa",3,null,null,"Virüs"]
["Mantar",2,"Geotericum spp.",2,null,"TMC","Mantar"]
["Virüs",5,"Germiston",3,null,"EXHAUST HEPA REQUIRED","Virüs"]
["Virüs",5,"Getah",2,null,null,"Virüs"]
["Parazit",3,"Giardia intestinalis",2,2,"BMBL","Parazit"]
["Parazit",3,"Giardia sp.",2,2,"BMBL","Parazit"]
["Virüs",5,"Gibbon Ape Lymphosarcoma",2,2,null,"Virüs"]
["Virüs",5,"Gomoka",2,null,null,"Virüs"]
["Virüs",5,"Gordil",2,null,null,"Virüs"]
["Virüs",5,"Gossas",2,null,null,"Virüs"]
["Virüs",5,"Grand Arbaud",2,null,null,"Virüs"]
["Virüs",5,"Gray Lodge",2,null,null,"Virüs"]
["Virüs",5,"Great Island",2,null,null,"Virüs"]
["Virüs",5,"Guajara",2,null,null,"Virüs"]
["Virüs",5,"Guama",2,null,null,"Virüs"]
["Virüs",5,"Guanarito",4,null,"EXHAUST HEPA REQUIRED","Virüs"]
["Virüs",5,"Guaratuba",2,null,null,"Virüs"]
["Virüs",5,"Guaroa",2,null,null,"Virüs"]
["Virüs",5,"Gumbo Limbo",2,null,null,"Virüs"]
["Virüs",5,"Gurupi",2,null,null,"Virüs"]
["Parazit",3,"Haemobartonella sp.",2,2,null,"Parazit"]
["Bakteri ",1,"Haemophilus sp.",2,2,null,"Bakteri "]
["Virüs",5,"Hantaan","3a",null,null,"Virüs"]
["Virüs",5,"Hanzalova",4,null,"EXHAUST HEPA REQUIRED","Virüs"]
["Virüs",5,"Hart Park",2,null,null,"Virüs"]
["Virüs",5,"Hart Park Virus",2,2,"BMBL","Virüs"]
["Virüs",5,"Hazara",2,null,null,"Virüs"]
["Bakteri ",1,"Helicobakter species",2,2,null,"Bakteri "]
["Virüs",5,"Hemorrhagic Fever Agents*",2,2,null,"Virüs"]
["Virüs",5,"Hepatitis A Virus, Hepatitis E Virus",2,2,"BMBL","Virüs"]
["Virüs",5,"Hepatitis B Virus",2,2,"BMBL","Virüs"]
["Virüs",5,"Hepatitis C Virus",2,2,"BMBL","Virüs"]
["Virüs",5,"Hepatitis D Virus",2,2,"BMBL","Virüs"]
["Virüs",5,"Herpesvirus - other",2,2,null,"Virüs"]
["Virüs",5,"Herpesvirus ateles",2,2,null,"Virüs"]
["Virüs",5,"Herpesvirus hominis","2-3",null,"TMC","Virüs"]
["Virüs",5,"Herpesvirus saimir",2,2,null,"Virüs"]
["Virüs",5,"Herpesvirus Simiae (B-virus)",3,3,"BSL-2, -3 or -4 depending on activity, BMBL","Virüs"]
["Parazit",3,"Heterophyes spp.",2,null,"TMC","Parazit"]
["Virüs",5,"HIV",3,null,"TMC","Virüs"]
["Virüs",5,"Highlands J",2,null,null,"Virüs"]
["Mantar",2,"Histoplasma capsulatum","2-3",2,"CLASS II BSC","Mantar"]
["Mantar",2,"Histoplasma farcinimosum",3,null,"TMC","Mantar"]
["Virüs",5,"Hog Cholera Virus",2,2,null,"Virüs"]
["Virüs",5,"Huacho",2,null,null,"Virüs"]
["Virüs",5,"Hughes",2,null,null,"Virüs"]
["Virüs",5,"Human Herpesviruses",2,2,"BMBL","Virüs"]
["Virüs",5,"Human T-Cell Leukemia Virus I & II",2,2,null,"Virüs"]
["Parazit",3,"Hymenolepis spp.",2,null,"TMC","Parazit"]
["Parazit",3,"Hymenolepsis nana",2,2,"BMBL","Parazit"]
["Virüs",5,"Hypr",4,null,"EXHAUST HEPA REQUIRED","Virüs"]
["Virüs",5,"Iaco",2,null,null,"Virüs"]
["Virüs",5,"Ibaraki",2,null,"EXHAUST HEPA REQUIRED","Virüs"]
["Virüs",5,"Icoaraci",2,null,null,"Virüs"]
["Virüs",5,"Ieri",2,null,null,"Virüs"]
["Virüs",5,"Ife",2,null,null,"Virüs"]
["Virüs",5,"Iguape",2,null,null,"Virüs"]
["Virüs",5,"Ilesha",2,null,null,"Virüs"]
["Virüs",5,"Ilheus",2,null,null,"Virüs"]
["Virüs",5,"Infectious Bronchitis Virus",2,2,null,"Virüs"]
["Virüs",5,"Influenza Virus",2,2,"BMBL","Virüs"]
["Virüs",5,"Influenza Virus Virulent Avian",3,3,null,"Virüs"]
["Virüs",5,"Ingwavuma",2,null,null,"Virüs"]
["Virüs",5,"Inhangapi",2,null,null,"Virüs"]
["Virüs",5,"Inini",2,null,null,"Virüs"]
["Virüs",5,"Inkoo",2,null,null,"Virüs"]
["Virüs",5,"Ippy",2,null,null,"Virüs"]
["Virüs",5,"Iriri",2,null,null,"Virüs"]
["Virüs",5,"Irituia",2,null,null,"Virüs"]
["Virüs",5,"Isfahan",2,null,null,"Virüs"]
["Parazit",3,"Isospora belli",2,2,"BSC","Parazit"]
["Parazit",3,"Isospora spp.",2,null,"TMC","Parazit"]
["Virüs",5,"Israel Turkey Meningitis",2,null,null,"Virüs"]
["Virüs",5,"Issyk-Kul",3,null,null,"Virüs"]
["Virüs",5,"Itacaiunas ",2,null,null,"Virüs"]
["Virüs",5,"Itaituba",2,null,null,"Virüs"]
["Virüs",5,"Itaporanga",2,null,null,"Virüs"]
["Virüs",5,"Itaqui",2,null,null,"Virüs"]
["Virüs",5,"Itimirim",2,null,null,"Virüs"]
["Virüs",5,"Itupiranga",2,null,null,"Virüs"]
["Virüs",5,"Ixcanal",2,null,null,"Virüs"]
["Virüs",5,"Jacareacanga ",2,null,null,"Virüs"]
["Virüs",5,"Jacunda ",2,null,null,"Virüs"]
["Virüs",5,"Jamanxi ",2,null,null,"Virüs"]
["Virüs",5,"Jamestown Canyon",2,null,null,"Virüs"]
["Virüs",5,"Japanaut",2,null,null,"Virüs"]
["Virüs",5,"Japanese Encephalitis ","3c",null,null,"Virüs"]
["Virüs",5,"Jari ",2,null,null,"Virüs"]
["Virüs",5,"Jatobal",2,null,null,"Virüs"]
["Virüs",5,"Jerry Slough",2,null,null,"Virüs"]
["Virüs",5,"Joa",2,null,null,"Virüs"]
["Virüs",5,"Johnston Atoll",2,null,null,"Virüs"]
["Virüs",5,"Joinjakaka",2,null,null,"Virüs"]
["Virüs",5,"Juan Diaz",2,null,null,"Virüs"]
["Virüs",5,"Jugra",2,null,null,"Virüs"]
["Virüs",5,"Junin",4,null,"EXHAUST HEPA REQUIRED","Virüs"]
["Virüs",5,"Jurona",2,null,null,"Virüs"]
["Virüs",5,"Juruaca",2,null,null,"Virüs"]
["Virüs",5,"Jutiapa",2,null,null,"Virüs"]
["Virüs",5,"K (Rate) Virus",2,2,null,"Virüs"]
["Virüs",5,"Kabakulak",2,null,"TMC","Virüs"]
["Virüs",5,"Kadam",2,null,null,"Virüs"]
["Virüs",5,"Kaeng Khoi",2,null,null,"Virüs"]
["Virüs",5,"Kaikalur ",2,null,null,"Virüs"]
["Virüs",5,"Kairi ",2,null,null,"Virüs"]
["Virüs",5,"Kaisodi",2,null,null,"Virüs"]
["Virüs",5,"Kamese",2,null,null,"Virüs"]
["Virüs",5,"Kamiti River ",2,null,null,"Virüs"]
["Virüs",5,"Kammavanpettai",2,null,null,"Virüs"]
["Virüs",5,"Kannamangalam",2,null,null,"Virüs"]
["Virüs",5,"Kao Shuan",2,null,null,"Virüs"]
["Virüs",5,"Karimabad",2,null,null,"Virüs"]
["Virüs",5,"Karshi ",2,null,null,"Virüs"]
["Virüs",5,"Kasba",2,null,null,"Virüs"]
["Virüs",5,"Kedougou",2,null,null,"Virüs"]
["Virüs",5,"Kemerovo",2,null,null,"Virüs"]
["Virüs",5,"Kern Canyon",2,null,null,"Virüs"]
["Virüs",5,"Ketapang",2,null,null,"Virüs"]
["Virüs",5,"Keterah",2,null,null,"Virüs"]
["Virüs",5,"Keuraliba",2,null,null,"Virüs"]
["Virüs",5,"Keystone",2,null,null,"Virüs"]
["Virüs",5,"Khabarovsk","3a",null,null,"Virüs"]
["Virüs",5,"Khasan",2,null,null,"Virüs"]
["Virüs",5,"Kızamık",2,null,"TMC","Virüs"]
["Virüs",5,"Kimberley",2,null,null,"Virüs"]
["Virüs",5,"Kindia",2,null,null,"Virüs"]
["Virüs",5,"Kismayo",2,null,null,"Virüs"]
["Virüs",5,"Klamath",2,null,null,"Virüs"]
["Bakteri ",1,"Klebsiella pneumoniae","2-3",null,"TMC","Bakteri "]
["Bakteri ",1,"Klebsiella sp.",2,2,null,"Bakteri "]
["Virüs",5,"Kokobera",2,null,null,"Virüs"]
["Virüs",5,"Kolongo",2,null,null,"Virüs"]
["Virüs",5,"Koongol",2,null,null,"Virüs"]
["Virüs",5,"Kotonkan",2,null,null,"Virüs"]
["Virüs",5,"Koutango",3,null,null,"Virüs"]
["Virüs",5,"Kowanyama",2,null,null,"Virüs"]
["Virüs",5,"Kumlinge",4,null,"EXHAUST HEPA REQUIRED","Virüs"]
["Virüs",5,"Kunjin",3,null,null,"Virüs"]
["Virüs",5,"Kununurra",2,null,null,"Virüs"]
["Virüs",5,"Kuru Agent","2",null,"BMBL","Virüs"]
["Virüs",5,"Kwatta",2,null,null,"Virüs"]
["Virüs",5,"Kyasanur Forest Disease",4,null,"EXHAUST HEPA REQUIRED","Virüs"]
["Virüs",5,"Kyzylagach",2,null,null,"Virüs"]
["Virüs",5,"La Crosse",2,null,null,"Virüs"]
["Virüs",5,"La Joya",2,null,null,"Virüs"]
["Mantar",2,"Labua Laboi",2,null,"TMC","Mantar"]
["Virüs",5,"Lactic Dehydrogenase Elevating",2,2,null,"Virüs"]
["Bakteri ",1,"Lactobacillus spp.",1,null,"TMC","Bakteri "]
["Virüs",5,"Lagos Bat",2,null,null,"Virüs"]
["Virüs",5,"Laguna Negra","3a",null,null,"Virüs"]
["Virüs",5,"Lake Clarendon",2,null,null,"Virüs"]
["Virüs",5,"Landjia",2,null,null,"Virüs"]
["Virüs",5,"Langat",2,null,null,"Virüs"]
["Virüs",5,"Langat Virus",2,2,"BMBL","Virüs"]
["Virüs",5,"Lanjan",2,null,null,"Virüs"]
["Virüs",5,"Laryngotracheitis Virus",2,2,null,"Virüs"]
["Virüs",5,"Las Maloyas",2,null,null,"Virüs"]
["Virüs",5,"Lassa",4,null,"EXHAUST HEPA REQUIRED","Virüs"]
["Virüs",5,"Lassa Virus*",4,4,"BMBL","Virüs"]
["Virüs",5,"Latino",2,null,null,"Virüs"]
["Virüs",5,"Le Dantec",2,null,null,"Virüs"]
["Virüs",5,"Lebombo",2,null,null,"Virüs"]
["Virüs",5,"Lechiguanas","3a",null,null,"Virüs"]
["Virüs",5,"Lednice",2,null,null,"Virüs"]
["Bakteri ",1,"Legionella longbeachae","2-3",2,"BMBL","Bakteri "]
["Bakteri ",1,"Legionella pneumophilia *","2-3",2,"BMBL","Bakteri "]
["Parazit",3,"Leishmania (Viannia) braziliensi",2,2,"BSC","Parazit"]
["Parazit",3,"Leishmania (Viannia) guyanensis",2,2,"BSC","Parazit"]
["Parazit",3,"Leishmania amazonensis",2,2,"BSC","Parazit"]
["Parazit",3,"Leishmania donovani",2,2,"BSC","Parazit"]
["Parazit",3,"Leishmania mexicana",2,2,"BSC","Parazit"]
["Parazit",3,"Leishmania sp. *","2-3",2,"BMBL","Parazit"]
["Parazit",3,"Leishmania tropica",2,2,"BSC","Parazit"]
["Mantar",2,"Leprae",2,2,"BMBL","Mantar"]
["Bakteri ",1,"Leptospira biflexa",2,2,"BMBL","Bakteri "]
["Bakteri ",1,"Leptospira interrogans all servars",2,2,"BMBL","Bakteri "]
["Parazit",3,"Leukocytozoon sp.",2,2,null,"Parazit"]
["Parazit",3,"Linguatula spp.",2,null,"TMC","Parazit"]
["Virüs",5,"Lipovnik",2,null,null,"Virüs"]
["Bakteri ",1,"Listeria monocytogenes",2,2,"BMBL","Bakteri "]
["Bakteri ",1,"Listeria sp.",2,2,"BMBL","Bakteri "]
["Virüs",5,"Llano Seco",2,null,null,"Virüs"]
["Parazit",3,"Loa spp.",2,null,"TMC","Parazit"]
["Virüs",5,"Lokern",2,null,null,"Virüs"]
["Virüs",5,"Lone Star ",2,null,null,"Virüs"]
["Virüs",5,"Louping Ill","3c",null,"EXHAUST HEPA REQUIRED","Virüs"]
["Virüs",5,"Low Risk Oncogenic Viruses",2,2,null,"Virüs"]
["Virüs",5,"Lukuni",2,null,null,"Virüs"]
["Virüs",5,"Lymphocytic Choriomeningitis Virus","2-3","2-3","BMBL","Virüs"]
["Virüs",5,"M’Poko",2,null,null,"Virüs"]
["Virüs",5,"Macaua",2,null,null,"Virüs"]
["Virüs",5,"Machupo",4,null,"EXHAUST HEPA REQUIRED","Virüs"]
["Parazit",3,"Macracanthorhynchus spp.",2,null,"TMC","Parazit"]
["Virüs",5,"Madrid ",2,null,null,"Virüs"]
["Mantar",2,"Madurella Mycetomi",2,null,"TMC","Mantar"]
["Virüs",5,"Maguari",2,null,null,"Virüs"]
["Virüs",5,"Mahogany Hammock",2,null,null,"Virüs"]
["Virüs",5,"Main Drain",2,null,null,"Virüs"]
["Virüs",5,"Malakal ",2,null,null,"Virüs"]
["Virüs",5,"Manawa ",2,null,null,"Virüs"]
["Virüs",5,"Manitoba",2,null,null,"Virüs"]
["Virüs",5,"Manzanilla",2,null,null,"Virüs"]
["Virüs",5,"Maporal","3a",null,null,"Virüs"]
["Virüs",5,"Mapputta",2,null,null,"Virüs"]
["Virüs",5,"Maprik",2,null,null,"Virüs"]
["Virüs",5,"Maraba",2,null,null,"Virüs"]
["Virüs",5,"Marajo",2,null,null,"Virüs"]
["Virüs",5,"Marburg",4,null,"EXHAUST HEPA REQUIRED","Virüs"]
["Virüs",5,"Marburg Virus*",4,4,"BMBL","Virüs"]
["Virüs",5,"Marco",2,null,null,"Virüs"]
["Virüs",5,"Mariquita",2,null,null,"Virüs"]
["Virüs",5,"Marituba ",2,null,null,"Virüs"]
["Virüs",5,"Marrakai",2,null,null,"Virüs"]
["Virüs",5,"Matariya",2,null,null,"Virüs"]
["Virüs",5,"Matruh",2,null,null,"Virüs"]
["Virüs",5,"Matucare",2,null,null,"Virüs"]
["Virüs",5,"Mayaro",2,null,null,"Virüs"]
["Virüs",5,"Mboke ",2,null,null,"Virüs"]
["Virüs",5,"Meaban",2,null,null,"Virüs"]
["Virüs",5,"Measles Virus",2,2,null,"Virüs"]
["Virüs",5,"Melao",2,null,null,"Virüs"]
["Virüs",5,"Memingopneumonitis Virus",2,2,null,"Virüs"]
["Virüs",5,"Mermet ",2,null,null,"Virüs"]
["Mantar",2,"Microsporum spp.",2,null,"TMC","Mantar"]
["Virüs",5,"Middelburg",2,null,null,"Virüs"]
["Virüs",5,"Minatitlan",2,null,null,"Virüs"]
["Virüs",5,"Minnal",2,null,null,"Virüs"]
["Virüs",5,"Mirim",2,null,null,"Virüs"]
["Mantar",2,"Miscellaneous Molds",2,null,"CLASS II BSC","Mantar"]
["Virüs",5,"Mitchell River",2,null,null,"Virüs"]
["Virüs",5,"Mobala ",3,null,null,"Virüs"]
["Virüs",5,"Modoc",2,null,null,"Virüs"]
["Virüs",5,"Moju",2,null,null,"Virüs"]
["Virüs",5,"Mojui Dos Campos",2,null,null,"Virüs"]
["Virüs",5,"Molluscum Contagiosum","2-3",null,"TMC","Virüs"]
["Virüs",5,"Monkey pox",3,3,null,"Virüs"]
["Virüs",5,"Mono Lake ",2,null,null,"Virüs"]
["Virüs",5,"Mont. Myotis Leukemia",2,null,null,"Virüs"]
["Virüs",5,"Monte Dourado",2,null,null,"Virüs"]
["Virüs",5,"Mopeia",3,null,null,"Virüs"]
["Bakteri ",1,"Moraxella spp.",2,2,null,"Bakteri "]
["Virüs",5,"Moriche",2,null,null,"Virüs"]
["Virüs",5,"Morro Bay",2,null,null,"Virüs"]
["Virüs",5,"Morumbi",2,null,null,"Virüs"]
["Virüs",5,"Mosqueiro",2,null,null,"Virüs"]
["Virüs",5,"Mossuril ",2,null,null,"Virüs"]
["Virüs",5,"Mount Elgon Bat",2,null,null,"Virüs"]
["Virüs",5,"Mouse Encephalomyelitis Virus",2,2,null,"Virüs"]
["Virüs",5,"Mouse Hepatitis Virus",2,2,null,"Virüs"]
["Virüs",5,"Mouse Leukemia Virus",2,2,null,"Virüs"]
["Virüs",5,"Mouse Pneumonia Virus",2,2,null,"Virüs"]
["Virüs",5,"Mucambo",3,null,"EXHAUST HEPA REQUIRED","Virüs"]
["Mantar",2,"Mucor spp.",2,null,"TMC","Mantar"]
["Virüs",5,"Mucura",2,null,null,"Virüs"]
["Virüs",5,"Mumps Virus",2,2,null,"Virüs"]
["Virüs",5,"Munguba",2,null,null,"Virüs"]
["Virüs",5,"Murray Valley Encephalitis",3,null,null,"Virüs"]
["Virüs",5,"Murutucu ",2,null,null,"Virüs"]
["Bakteri ",1,"Mycobacterium abscesens",2,2,"BMBL","Bakteri "]
["Bakteri ",1,"Mycobacterium africanum",3,2,"BMBL","Bakteri "]
["Bakteri ",1,"Mycobacterium avium",2,2,"BMBL","Bakteri "]
["Bakteri ",1,"Mycobacterium bovis",3,2,"BMBL","Bakteri "]
["Bakteri ",1,"Mycobacterium caprae",3,2,"BMBL","Bakteri "]
["Bakteri ",1,"Mycobacterium chelonei",2,2,"BMBL","Bakteri "]
["Bakteri ",1,"Mycobacterium fortuitum",2,2,"BMBL","Bakteri "]
["Bakteri ",1,"Mycobacterium intracellulare",2,2,"BMBL","Bakteri "]
["Bakteri ",1,"Mycobacterium kansasii",2,2,"BMBL","Bakteri "]
["Bakteri ",1,"Mycobacterium leprae","2-3",2,"BMBL","Bakteri "]
["Bakteri ",1,"Mycobacterium marinum",2,2,"BMBL","Bakteri "]
["Bakteri ",1,"Mycobacterium microti",3,2,"BMBL","Bakteri "]
["Bakteri ",1,"Mycobacterium pinnipedii",3,2,"BMBL","Bakteri "]
["Bakteri ",1,"Mycobacterium scrofulaceum",2,2,"BMBL","Bakteri "]
["Bakteri ",1,"Mycobacterium simiae","2-3",null,"TMC","Bakteri "]
["Bakteri ",1,"Mycobacterium sp.","2-3",2,"BMBL","Bakteri "]
["Bakteri ",1,"Mycobacterium spp. other than M. tuberculosis complex and M. Leprae","2-3",2,"BMBL","Bakteri "]
["Bakteri ",1,"Mycobacterium szulgai",3,null,"TMC","Bakteri "]
["Bakteri ",1,"Mycobacterium tuberculosis",3,2,"BMBL","Bakteri "]
["Bakteri ",1,"Mycobacterium tuberculosis complex",3,2,"BMBL","Bakteri "]
["Bakteri ",1,"Mycobacterium ulcerans",2,2,"BMBL","Bakteri "]
["Bakteri ",1,"Mycobacterium xenopi","2-3",null,"TMC","Bakteri "]
["Bakteri ",1,"Mycoplasma pneumoniae","2-3",null,"TMC","Bakteri "]
["Bakteri ",1,"Mycoplasma sp.",2,2,null,"Bakteri "]
["Virüs",5,"Mykines",2,null,null,"Virüs"]
["Virüs",5,"Myxomatosis Virus",2,2,null,"Virüs"]
["Parazit",3,"Naegleria fowleri","2-3",null,"TMC","Parazit"]
["Parazit",3,"Naegleria gruberi",1,null,"TMC","Parazit"]
["Parazit",3,"Naegleria sp.",2,2,null,"Parazit"]
["Virüs",5,"Nairobi Sheep Disease e","3c",null,null,"Virüs"]
["Virüs",5,"Naranjal",2,null,null,"Virüs"]
["Virüs",5,"Nariva",2,null,null,"Virüs"]
["Virüs",5,"Nasoule",2,null,null,"Virüs"]
["Virüs",5,"Navarro",2,null,null,"Virüs"]
["Virüs",5,"Ndelle",2,null,null,"Virüs"]
["Virüs",5,"Ndumu",2,null,null,"Virüs"]
["Parazit",3,"Necator spp.",2,null,"TMC","Parazit"]
["Virüs",5,"Negishi ",3,null,null,"Virüs"]
["Bakteri ",1,"Neisseria gonorrhoeae","2-3",2,"BMBL","Bakteri "]
["Bakteri ",1,"Neisseria menegitidis","2-3",2,"BMBL","Bakteri "]
["Bakteri ",1,"Neisseria spp.","2-3",null,"TMC","Bakteri "]
["Parazit",3,"Nematode Parasites",2,2,null,"Parazit"]
["Virüs",5,"Nepuyo",2,null,null,"Virüs"]
["Virüs",5,"Netivot ",2,null,null,"Virüs"]
["Bakteri ",1,"Neurotoxin producing Clostridia species","2-3",2,"BMBL","Bakteri "]
["Virüs",5,"New Minto",2,null,null,"Virüs"]
["Virüs",5,"Newcastle Disease Virus",2,2,null,"Virüs"]
["Virüs",5,"Newcastle Disease Virus (VVND)",2,2,null,"Virüs"]
["Virüs",5,"Ngaingan",2,null,null,"Virüs"]
["Virüs",5,"Ngari d",3,null,null,"Virüs"]
["Virüs",5,"Ngoupe",2,null,null,"Virüs"]
["Virüs",5,"Nique",2,null,null,"Virüs"]
["Virüs",5,"Nkolbisson",2,null,null,"Virüs"]
["Bakteri ",1,"Nocardia sp.",2,2,null,"Bakteri "]
["Virüs",5,"Nodamura",2,null,null,"Virüs"]
["Virüs",5,"Nola",2,null,null,"Virüs"]
["Virüs",5,"Non-Defective Adenovirus 2SV40 HYB",2,2,null,"Virüs"]
["Virüs",5,"Northway",2,null,null,"Virüs"]
["Virüs",5,"Norwalk Ajanı","2-3",null,"TMC","Virüs"]
["Virüs",5,"Ntaya",2,null,null,"Virüs"]
["Virüs",5,"Nugget",2,null,null,"Virüs"]
["Virüs",5,"Nyamanini",2,null,null,"Virüs"]
["Virüs",5,"Nyando",2,null,null,"Virüs"]
["Virüs",5,"O’Nyong-Nyong",2,null,"EXHAUST HEPA REQUIRED","Virüs"]
["Virüs",5,"Oak Vale",2,null,null,"Virüs"]
["Virüs",5,"Odrenisrou",2,null,null,"Virüs"]
["Virüs",5,"Okhotskiy",2,null,null,"Virüs"]
["Virüs",5,"Okola",2,null,null,"Virüs"]
["Virüs",5,"Olifantsvlei",2,null,null,"Virüs"]
["Virüs",5,"Omo",2,null,null,"Virüs"]
["Virüs",5,"Omsk Hemorrhagic Fever",4,null,"EXHAUST HEPA REQUIRED","Virüs"]
["Parazit",3,"Onchocerca spp.",2,null,"TMC","Parazit"]
["Parazit",3,"Opistorchis spp.",2,null,"TMC","Parazit"]
["Virüs",5,"Oran","3a",null,null,"Virüs"]
["Virüs",5,"Orf","2-3",null,"TMC","Virüs"]
["Virüs",5,"Oriboca",2,null,null,"Virüs"]
["Virüs",5,"Oriximina ",2,null,null,"Virüs"]
["Virüs",5,"Oropouche ",3,null,"EXHAUST HEPA REQUIRED","Virüs"]
["Virüs",5,"Orungo",2,null,null,"Virüs"]
["Virüs",5,"Ossa",2,null,null,"Virüs"]
["Virüs",5,"Ouango",2,null,null,"Virüs"]
["Virüs",5,"Oubangui ",2,null,null,"Virüs"]
["Virüs",5,"Oubi ",2,null,null,"Virüs"]
["Virüs",5,"Ourem",2,null,null,"Virüs"]
["Riketsiya",4,"Oxiella burnetii*","2-3",3,"BMBL","Riketsiya"]
["Virüs",5,"Pacora",2,null,null,"Virüs"]
["Virüs",5,"Pacui",2,null,null,"Virüs"]
["Virüs",5,"Pahayokee",2,null,null,"Virüs"]
["Virüs",5,"Palestina",2,null,null,"Virüs"]
["Virüs",5,"Palma",2,null,null,"Virüs"]
["Virüs",5,"Palyam",2,null,null,"Virüs"]
["Virüs",5,"Papilloma Virus Shope",2,2,null,"Virüs"]
["Virüs",5,"Para",2,null,null,"Virüs"]
["Mantar",2,"Paracoccidioides brasilienisis",2,2,null,"Mantar"]
["Parazit",3,"Paragonimus spp.",2,null,"TMC","Parazit"]
["Virüs",5,"Parainfluenza Virus",2,2,null,"Virüs"]
["Virüs",5,"Paramushir ",2,null,null,"Virüs"]
["Virüs",5,"Parana",2,null,null,"Virüs"]
["Virüs",5,"Paravaccinia","2-3",null,"TMC","Virüs"]
["Virüs",5,"Paroo River",2,null,null,"Virüs"]
["Virüs",5,"Parvovirus B19","2-3",null,"TMC","Virüs"]
["Bakteri ",1,"Pasteurella sp.",2,2,null,"Bakteri "]
["Virüs",5,"Pata",2,null,null,"Virüs"]
["Virüs",5,"Pathum Thani",2,null,null,"Virüs"]
["Virüs",5,"Patois",2,null,null,"Virüs"]
["Virüs",5,"Peaton",2,null,null,"Virüs"]
["Virüs",5,"Pergamino","3a",null,null,"Virüs"]
["Virüs",5,"Perinet",2,null,null,"Virüs"]
["Virüs",5,"Petevo",2,null,null,"Virüs"]
["Virüs",5,"Phnom-Penh Bat",2,null,null,"Virüs"]
["Virüs",5,"Pichinde",2,null,null,"Virüs"]
["Virüs",5,"Picola ",2,null,null,"Virüs"]
["Virüs",5,"Pirital",3,null,null,"Virüs"]
["Virüs",5,"Piry ",3,null,null,"Virüs"]
["Virüs",5,"Pixuna",2,null,null,"Virüs"]
["Parazit",3,"Plasmodium cynomolgi",2,2,"BSC","Parazit"]
["Parazit",3,"Plasmodium falciparum",2,2,"BSC","Parazit"]
["Parazit",3,"Plasmodium sp.",2,2,"BMBL","Parazit"]
["Parazit",3,"Plasmodium vivax",2,2,"BSC","Parazit"]
["Virüs",5,"Playas",2,null,null,"Virüs"]
["Bakteri ",1,"Plesiomonas shigelloides",2,null,"TMC","Bakteri "]
["Parazit",3,"Pneumocystis carinii",2,null,"TMC","Parazit"]
["Virüs",5,"Poliomyelit","2-3",null,"TMC","Virüs"]
["Virüs",5,"Poliovirus - all types",2,2,"BMBL","Virüs"]
["Virüs",5,"Polyoma Virus",2,2,null,"Virüs"]
["Virüs",5,"Pongola",2,null,null,"Virüs"]
["Virüs",5,"Ponteves",2,null,null,"Virüs"]
["Virüs",5,"Potosi ",2,null,null,"Virüs"]
["Virüs",5,"Powassan",3,null,null,"Virüs"]
["Virüs",5,"Poxvirus - Smallpox*",null,null,"restricted use by WHO","Virüs"]
["Virüs",5,"Poxvirus alastrim",2,2,null,"Virüs"]
["Virüs",5,"Poxvirus sp.",2,2,"BMBL","Virüs"]
["Virüs",5,"Precarious Point",2,null,null,"Virüs"]
["Virüs",5,"Pretoria",2,null,null,"Virüs"]
["Prion",7,"Prionlar",2,null,null,"Prion"]
["Virüs",5,"Prospect Hill ",2,null,null,"Virüs"]
["Bakteri ",1,"Proteus spp.",2,null,"TMC","Bakteri "]
["Bakteri ",1,"Pseudomonas aeruginosa",2,null,"TMC","Bakteri "]
["Bakteri ",1,"Pseudomonas mallei","2-3",3,"BMBL","Bakteri "]
["Bakteri ",1,"Pseudomonas pseudomallei","2-3",3,"BMBL","Bakteri "]
["Bakteri ",1,"Pseudomonas testoserone",2,2,null,"Bakteri "]
["Virüs",5,"Pseudorabies Virus",2,2,null,"Virüs"]
["Virüs",5,"Puchong",2,null,null,"Virüs"]
["Virüs",5,"Pueblo Viejo",2,null,null,"Virüs"]
["Virüs",5,"Punta Salinas",2,null,null,"Virüs"]
["Virüs",5,"Punta Toro",2,null,null,"Virüs"]
["Virüs",5,"Purus",2,null,null,"Virüs"]
["Virüs",5,"Puumala","3a",null,null,"Virüs"]
["Virüs",5,"Qalyub",2,null,null,"Virüs"]
["Virüs",5,"Quaranfil",2,null,null,"Virüs"]
["Virüs",5,"Rabies Virus","2-3","2-3","BMBL","Virüs"]
["Virüs",5,"Radi",2,null,null,"Virüs"]
["Virüs",5,"Razdan",2,null,null,"Virüs"]
["Virüs",5,"Reovirus sp.",2,2,null,"Virüs"]
["Virüs",5,"Resistencia",2,null,null,"Virüs"]
["Virüs",5,"Respiratory Syncytial Virus",2,2,null,"Virüs"]
["Virüs",5,"Restan",2,null,null,"Virüs"]
["Virüs",5,"Retroviruses, including HIV & SIV","2-3","2-3","BMBL","Virüs"]
["Virüs",5,"Rhinovirus sp.",2,2,null,"Virüs"]
["Mantar",2,"Rhizopus spp.",2,null,"TMC","Mantar"]
["Virüs",5,"Rhode Island ",2,null,null,"Virüs"]
["Riketsiya",4,"Rickettsia akari","2-3","2-3",null,"Riketsiya"]
["Riketsiya",4,"Rickettsia australis","2-3","2-3","BMBL","Riketsiya"]
["Riketsiya",4,"Rickettsia canada","2-3","2-3","BMBL","Riketsiya"]
["Riketsiya",4,"Rickettsia conorii","2-3","2-3","BMBL","Riketsiya"]
["Riketsiya",4,"Rickettsia japonicum","2-3",2,null,"Riketsiya"]
["Riketsiya",4,"Rickettsia prowazekii*","2-3","2-3","BMBL","Riketsiya"]
["Riketsiya",4,"Rickettsia rickettsii*","2-3","2-3","BMBL","Riketsiya"]
["Riketsiya",4,"Rickettsia siberica","2-3","2-3","BMBL","Riketsiya"]
["Riketsiya",4,"Rickettsia tsutsugamushi","2-3","2-3","BMBL","Riketsiya"]
["Riketsiya",4,"Rickettsia typhi (R. mooseri)","2-3","2-3","BMBL","Riketsiya"]
["Virüs",5,"Rift Valley Fever","3c",null,"EXHAUST HEPA REQUIRED","Virüs"]
["Virüs",5,"Rio Bravo",2,null,null,"Virüs"]
["Virüs",5,"Rio Grande",2,null,null,"Virüs"]
["Virüs",5,"Rio Preto",2,null,null,"Virüs"]
["Riketsiya",4,"Rochalimaea quintana",2,2,null,"Riketsiya"]
["Riketsiya",4,"Rochalimaea vinsonii",2,2,null,"Riketsiya"]
["Virüs",5,"Rochambeau ",2,null,null,"Virüs"]
["Virüs",5,"Rocio",3,null,"EXHAUST HEPA REQUIRED","Virüs"]
["Virüs",5,"Ross River ",2,null,null,"Virüs"]
["Virüs",5,"Rotavirus",2,null,"TMC","Virüs"]
["Bakteri ",1,"Rotococcus (Coryne.) equi",2,2,null,"Bakteri "]
["Virüs",5,"Rous Sarcoma Virus",2,2,null,"Virüs"]
["Virüs",5,"Royal Farm",2,null,null,"Virüs"]
["Virüs",5,"Rubella Virus",2,2,null,"Virüs"]
["Virüs",5,"Russian Spring-Summer Encephalitis",4,null,"EXHAUST HEPA REQUIRED","Virüs"]
["Virüs",5,"Saaremaa","3a",null,null,"Virüs"]
["Virüs",5,"Sabia",4,null,"EXHAUST HEPA REQUIRED","Virüs"]
["Virüs",5,"Sabo",2,null,null,"Virüs"]
["Virüs",5,"Saboya",2,null,null,"Virüs"]
["Virüs",5,"Sagiyama",2,null,null,"Virüs"]
["Virüs",5,"Saint-Floris",2,null,null,"Virüs"]
["Virüs",5,"Sakhalin",2,null,null,"Virüs"]
["Virüs",5,"Sal Vieja",2,null,null,"Virüs"]
["Virüs",5,"Salanga",2,null,null,"Virüs"]
["Virüs",5,"Salehabad",2,null,null,"Virüs"]
["Virüs",5,"Salmon River ",2,null,null,"Virüs"]
["Bakteri ",1,"Salmonella arizonae",2,null,"TMC","Bakteri "]
["Bakteri ",1,"Salmonella bongori",2,2,"BMBL","Bakteri "]
["Bakteri ",1,"Salmonella choleraesuis","2-3",null,"TMC","Bakteri "]
["Bakteri ",1,"Salmonella enterica",2,2,"BMBL","Bakteri "]
["Bakteri ",1,"Salmonella enteritidis",2,2,"BMBL","Bakteri "]
["Bakteri ",1,"Salmonella sp.",2,2,"BMBL","Bakteri "]
["Bakteri ",1,"Salmonella typhi","2-3","2-3","BMBL","Bakteri "]
["Bakteri ",1,"Salmonella typhimurium",2,2,"BMBL","Bakteri "]
["Virüs",5,"San Angelo",2,null,null,"Virüs"]
["Virüs",5,"San Juan",2,null,null,"Virüs"]
["Virüs",5,"San Perlita",2,null,null,"Virüs"]
["Virüs",5,"Sandfly Fever, Naples",2,null,null,"Virüs"]
["Virüs",5,"Sandfly Fever, Sicilian",2,null,null,"Virüs"]
["Virüs",5,"Sandjimba",2,null,null,"Virüs"]
["Virüs",5,"Sango",2,null,null,"Virüs"]
["Virüs",5,"Santa Rosa",2,null,null,"Virüs"]
["Virüs",5,"Santarem",2,null,null,"Virüs"]
["Virüs",5,"Saraca",2,null,null,"Virüs"]
["Parazit",3,"Sarcocystis sp.",2,2,"BMBL","Parazit"]
["Virüs",5,"Sathuperi",2,null,null,"Virüs"]
["Virüs",5,"Saumarez Reef",2,null,null,"Virüs"]
["Virüs",5,"Sawgrass",2,null,null,"Virüs"]
["Parazit",3,"Schistosoma mansoni",2,2,null,"Parazit"]
["Parazit",3,"Schistosoma spp.",2,2,"BMBL","Parazit"]
["Virüs",5,"Sebokele",2,null,null,"Virüs"]
["Virüs",5,"Sedlec",2,null,null,"Virüs"]
["Virüs",5,"Seletar",2,null,null,"Virüs"]
["Virüs",5,"Sembalam",2,null,null,"Virüs"]
["Virüs",5,"Semliki Forest",3,null,null,"Virüs"]
["Virüs",5,"Sena Madureira",2,null,null,"Virüs"]
["Virüs",5,"Seoul","3a",null,null,"Virüs"]
["Virüs",5,"Sepik",2,null,null,"Virüs"]
["Virüs",5,"Serra Do Navio",2,null,null,"Virüs"]
["Virüs",5,"Serra Norte",2,null,null,"Virüs"]
["Bakteri ",1,"Serratia marcencens",2,null,"TMC","Bakteri "]
["Virüs",5,"Severe acute respiratory syndrome (SARS) coronavirus ","2-3",3,null,"Virüs"]
["Virüs",5,"Shamonda",2,null,null,"Virüs"]
["Virüs",5,"Shark River",2,null,null,"Virüs"]
["Toksin",6,"Shiga toxin (Verocytotoxin)-producing Escherichia coli",2,2,null,"Toksin"]
["Bakteri ",1,"Shigella boydii",2,2,"BMBL","Bakteri "]
["Bakteri ",1,"Shigella dysenteriae",2,2,"BMBL","Bakteri "]
["Bakteri ",1,"Shigella flexneri",2,2,"BMBL","Bakteri "]
["Bakteri ",1,"Shigella sonnei",2,2,"BMBL","Bakteri "]
["Bakteri ",1,"Shigella sp.",2,2,"BMBL","Bakteri "]
["Virüs",5,"Shokwe",2,null,null,"Virüs"]
["Virüs",5,"Shuni",2,null,null,"Virüs"]
["Virüs",5,"Silverwater",2,null,null,"Virüs"]
["Virüs",5,"Simbu",2,null,null,"Virüs"]
["Virüs",5,"Simian Hemorrhagic Fever",2,null,null,"Virüs"]
["Virüs",5,"Simian T-Cell Leukemia Virus",2,2,null,"Virüs"]
["Virüs",5,"Simian Virus - 40","2-3",null,"TMC","Virüs"]
["Virüs",5,"Simian Virus - other",2,2,null,"Virüs"]
["Virüs",5,"Sin Nombre","3a",null,null,"Virüs"]
["Virüs",5,"Sindbis",2,null,null,"Virüs"]
["Virüs",5,"Sindbis Virus",2,2,null,"Virüs"]
["Virüs",5,"Sixgun City",2,null,null,"Virüs"]
["Virüs",5,"Slovakia",3,null,null,"Virüs"]
["Virüs",5,"Slow Viruses",2,2,null,"Virüs"]
["Virüs",5,"Snowshoe Hare",2,null,null,"Virüs"]
["Virüs",5,"Sokoluk",2,null,null,"Virüs"]
["Virüs",5,"Soldado ",2,null,null,"Virüs"]
["Virüs",5,"Somone",3,null,null,"Virüs"]
["Virüs",5,"Sororoca",2,null,null,"Virüs"]
["Virüs",5,"Spondweni",2,null,null,"Virüs"]
["Mantar",2,"Sporothrix schenckii",2,2,"CLASS II BSC","Mantar"]
["Riketsiya",4,"Spotted Fever Group agents of human disease","2-3","2-3",null,"Riketsiya"]
["Virüs",5,"Sripur",3,null,null,"Virüs"]
["Virüs",5,"St. Louis Encephalitis",3,null,null,"Virüs"]
["Bakteri ",1,"Staphylococcus aureus","2-3",null,"TMC","Bakteri "]
["Bakteri ",1,"Staphylococcus epidermidis","2",null,"TMC","Bakteri "]
["Bakteri ",1,"Staphylococcus moniliformis","2-3",null,"TMC","Bakteri "]
["Bakteri ",1,"Staphylococcus sp.",2,2,null,"Bakteri "]
["Virüs",5,"Stratford ",2,null,null,"Virüs"]
["Bakteri ",1,"Streptocacillus moniliformis",2,2,null,"Bakteri "]
["Bakteri ",1,"Streptococcus sp.",2,2,null,"Bakteri "]
["Bakteri ",1,"Streptomyces somaliensis",2,2,null,"Bakteri "]
["Parazit",3,"Strongyloides",2,2,"BSC","Parazit"]
["Parazit",3,"Strongyloides sp.",2,2,"BMBL","Parazit"]
["Virüs",5,"Sunday Canyon",2,null,null,"Virüs"]
["Virüs",5,"Tacaiuma",2,null,null,"Virüs"]
["Virüs",5,"Tacaribe",2,null,null,"Virüs"]
["Parazit",3,"Taenia",2,2,null,"Parazit"]
["Parazit",3,"Taenia solium",2,2,null,"Parazit"]
["Virüs",5,"Taggert",2,null,null,"Virüs"]
["Virüs",5,"Tahyna",2,null,null,"Virüs"]
["Virüs",5,"Tai",2,null,null,"Virüs"]
["Virüs",5,"Tamdy",2,null,null,"Virüs"]
["Virüs",5,"Tamiami",2,null,null,"Virüs"]
["Virüs",5,"Tanga",2,null,null,"Virüs"]
["Virüs",5,"Tanjong Rabok",2,null,null,"Virüs"]
["Virüs",5,"Tapara",2,null,null,"Virüs"]
["Virüs",5,"Tataguine",2,null,null,"Virüs"]
["Virüs",5,"Tehran",2,null,null,"Virüs"]
["Virüs",5,"Telok Forest ",2,null,null,"Virüs"]
["Virüs",5,"Tembe",2,null,null,"Virüs"]
["Virüs",5,"Tembusu",2,null,null,"Virüs"]
["Virüs",5,"Tensaw",2,null,null,"Virüs"]
["Virüs",5,"Tensaw Virus",2,2,null,"Virüs"]
["Virüs",5,"Termeil",2,null,null,"Virüs"]
["Toksin",6,"Tetanus Toxin",2,2,null,"Toksin"]
["Virüs",5,"Tete",2,null,null,"Virüs"]
["Parazit",3,"The threadworm",2,2,"BSC","Parazit"]
["Virüs",5,"Thiafora ",2,null,null,"Virüs"]
["Virüs",5,"Thimiri",2,null,null,"Virüs"]
["Virüs",5,"Thogoto",2,null,null,"Virüs"]
["Virüs",5,"Thottapalayam",2,null,null,"Virüs"]
["Virüs",5,"Tibrogargan",2,null,null,"Virüs"]
["Virüs",5,"Tick-Borne Encephalitis Complex",4,4,null,"Virüs"]
["Virüs",5,"Tilligerry",2,null,null,"Virüs"]
["Virüs",5,"Timbo",2,null,null,"Virüs"]
["Virüs",5,"Timboteua",2,null,null,"Virüs"]
["Virüs",5,"Tinaroo",2,null,null,"Virüs"]
["Virüs",5,"Tindholmur",2,null,null,"Virüs"]
["Virüs",5,"Tlacotalpan",2,null,null,"Virüs"]
["Toksin",6,"Toksinler","2-3",null,null,"Toksin"]
["Virüs",5,"Tonate",3,null,"EXHAUST HEPA REQUIRED","Virüs"]
["Virüs",5,"Topografov","3a",null,null,"Virüs"]
["Virüs",5,"Toscana ",2,null,null,"Virüs"]
["Virüs",5,"Toure",2,null,null,"Virüs"]
["Parazit",3,"Toxascaris spp.",2,null,"TMC","Parazit"]
["Parazit",3,"Toxocara canis",2,2,null,"Parazit"]
["Parazit",3,"Toxoplasma gondii",2,2,"BSC","Parazit"]
["Parazit",3,"Toxoplasma sp.",2,2,"BMBL","Parazit"]
["Virüs",5,"Tracambe",2,null,null,"Virüs"]
["Virüs",5,"Transmissible Spongiform Encephalopathies (Creutzfeldt-Jakob, kuru, and related agents",2,2,"BMBL","Virüs"]
["Parazit",3,"Trematode Parasites",2,2,null,"Parazit"]
["Bakteri ",1,"Treponema pallidum ssp. Endemicum",2,2,"BMBL","Bakteri "]
["Bakteri ",1,"Treponema pallidum ssp. Pallidum",2,2,"BMBL","Bakteri "]
["Bakteri ",1,"Treponema pallidum ssp. Pertenue",2,2,"BMBL","Bakteri "]
["Bakteri ",1,"Treponema spp.","2-3",null,"TMC","Bakteri "]
["Virüs",5,"Tribec",2,null,null,"Virüs"]
["Parazit",3,"Trichinella spiralis",2,2,"BMBL","Parazit"]
["Parazit",3,"Trichinella spp.",2,null,"TMC","Parazit"]
["Parazit",3,"Trichomonas vaginalis",2,null,"TMC","Parazit"]
["Mantar",2,"Trichophyton - pathogenic sp.",2,2,"BMBL","Mantar"]
["Mantar",2,"Trichosporon spp.",2,null,"TMC","Mantar"]
["Parazit",3,"Trichostrongylus spp.",2,null,"TMC","Parazit"]
["Parazit",3,"Trichuris trichiura",2,null,"TMC","Parazit"]
["Virüs",5,"Triniti",2,null,null,"Virüs"]
["Virüs",5,"Trivittatus",2,null,null,"Virüs"]
["Virüs",5,"Trocara",2,null,null,"Virüs"]
["Virüs",5,"Trombetas",2,null,null,"Virüs"]
["Virüs",5,"Trubanaman",2,null,null,"Virüs"]
["Parazit",3,"Trypanosoma brucei gambiense",2,2,"BSC","Parazit"]
["Parazit",3,"Trypanosoma brucei rhodesiense",2,2,"BSC","Parazit"]
["Parazit",3,"Trypanosoma cruzi",2,2,"BSC","Parazit"]
["Parazit",3,"Trypanosoma sp.",2,2,"BMBL","Parazit"]
["Virüs",5,"Tsuruse",2,null,null,"Virüs"]
["Virüs",5,"Tucurui",2,null,null,"Virüs"]
["Virüs",5,"Tula",2,null,null,"Virüs"]
["Virüs",5,"Tunis",2,null,null,"Virüs"]
["Virüs",5,"Turlock",2,null,null,"Virüs"]
["Virüs",5,"Turlock Virus",2,2,null,"Virüs"]
["Virüs",5,"Turuna",2,null,null,"Virüs"]
["Virüs",5,"Tyuleniy",2,null,null,"Virüs"]
["Virüs",5,"Uganda",2,null,null,"Virüs"]
["Virüs",5,"Umatilla",2,null,null,"Virüs"]
["Virüs",5,"Umbre",2,null,null,"Virüs"]
["Virüs",5,"Una ",2,null,null,"Virüs"]
["Virüs",5,"Upolu",2,null,null,"Virüs"]
["Virüs",5,"Uriurana",2,null,null,"Virüs"]
["Virüs",5,"Urucuri",2,null,null,"Virüs"]
["Virüs",5,"Usutu",2,null,null,"Virüs"]
["Virüs",5,"Utinga",2,null,null,"Virüs"]
["Virüs",5,"Uukuniemi",2,null,null,"Virüs"]
["Virüs",5,"Vaccinia Virus",2,2,null,"Virüs"]
["Virüs",5,"Varicella","2-3",null,"TMC","Virüs"]
["Virüs",5,"Vellore",2,null,null,"Virüs"]
["Virüs",5,"Venezuelan Equine Encephalitis","3c",null,"EXHAUST HEPA REQUIRED","Virüs"]
["Virüs",5,"Venezuelan Equine Encephalitis*",3,3,null,"Virüs"]
["Virüs",5,"Venkatapuram",2,null,null,"Virüs"]
["Toksin",6,"Verocytotoxin (Shiga toxin)-producing Escherichia coli",2,2,null,"Toksin"]
["Virüs",5,"Vesicular Somatitis Virus",3,3,"BMBL","Virüs"]
["Virüs",5,"Vesicular Stomatitis - lab adapted",2,2,"BMBL","Virüs"]
["Virüs",5,"Vesicular Stomatitis-Alagoas","2c",null,null,"Virüs"]
["Virüs",5,"Vesicular Stomatitis-Indiana","2c",null,null,"Virüs"]
["Virüs",5,"Vesicular Stomatitis-New Jersey","2c",null,null,"Virüs"]
["Bakteri ",1,"Vibrio cholerae",2,2,null,"Bakteri "]
["Bakteri ",1,"Vibrio Enteritis sp.",2,2,"BMBL","Bakteri "]
["Bakteri ",1,"Vibrio parahaemolyticus",2,2,null,"Bakteri "]
["Bakteri ",1,"Vibrio vulnificus","2-3",null,"TMC","Bakteri "]
["Virüs",5,"Vinces",2,null,null,"Virüs"]
["Virüs",5,"Virgin River",2,null,null,"Virüs"]
["Virüs",5,"Wad Medani",2,null,null,"Virüs"]
["Virüs",5,"Wallal",2,null,null,"Virüs"]
["Virüs",5,"Wanowrie",2,null,null,"Virüs"]
["Virüs",5,"Warrego",2,null,null,"Virüs"]
["Virüs",5,"Wesselsbron","3c",null,"EXHAUST HEPA REQUIRED","Virüs"]
["Virüs",5,"West Nile",3,null,null,"Virüs"]
["Virüs",5,"Western Equine Encephalitis",3,null,null,"Virüs"]
["Virüs",5,"Whataroa",2,null,null,"Virüs"]
["Virüs",5,"Whitewater Arroyo",3,null,null,"Virüs"]
["Virüs",5,"Witwatersrand",2,null,null,"Virüs"]
["Virüs",5,"Wongal",2,null,null,"Virüs"]
["Virüs",5,"Wongorr",2,null,null,"Virüs"]
["Virüs",5,"Woolly Monkey Fibrosarcoma",3,3,null,"Virüs"]
["Parazit",3,"Wuchereria spp",2,null,"TMC","Parazit"]
["Virüs",5,"Wyeomyia",2,null,null,"Virüs"]
["Virüs",5,"Xiburema",2,null,null,"Virüs"]
["Virüs",5,"Xingu",3,null,null,"Virüs"]
["Mantar",2,"Xylohypha bantania",2,null,"TMC","Mantar"]
["Virüs",5,"Yaba Pox","2-3",null,"TMC","Virüs"]
["Virüs",5,"Yaba Virus",2,2,null,"Virüs"]
["Virüs",5,"Yacaaba",2,null,null,"Virüs"]
["Virüs",5,"Yaounde",2,null,null,"Virüs"]
["Virüs",5,"Yaquina Head",2,null,null,"Virüs"]
["Virüs",5,"Yata ",2,null,null,"Virüs"]
["Virüs",5,"Yellow Fever ",3,null,"EXHAUST HEPA REQUIRED","Virüs"]
["Virüs",5,"Yellow Fever Virus 17D Strain*",2,2,"BMBL","Virüs"]
["Virüs",5,"Yellow Fever Virus Except 17D Strain*",3,3,"BMBL","Virüs"]
["Bakteri ",1,"Yersinia enterocolytica","2-3",null,"TMC","Bakteri "]
["Bakteri ",1,"Yersinia pestis*","2-3","2-3","BMBL, immunization recommended","Bakteri "]
["Bakteri ",1,"Yersinia pseudotuberculosis","2-3",null,"TMC","Bakteri "]
["Virüs",5,"Yogue",2,null,null,"Virüs"]
["Virüs",5,"Yoka ",2,null,null,"Virüs"]
["Virüs",5,"Yug Bogdanovac",2,null,null,"Virüs"]
["Virüs",5,"Zaliv Terpeniya",2,null,null,"Virüs"]
["Virüs",5,"Zegla ",2,null,null,"Virüs"]
["Virüs",5,"Zika ",2,null,null,"Virüs"]
["Virüs",5,"Zirqa",2,null,null,"Virüs"]

{"sheet":"BSL","index":1,"n_rows":21,"n_cols":8,"rows_kept":21,"cut":false,"hidden":false,"merged":[[5,4,6,4],[5,2,6,2],[5,3,6,3]]}
[]
[null,null,"PATOJEN MİKROORGANİZMA",null,null,null,null,"Corynebacterium diphtheriae"]
[null,null,"PATOJEN AİLESİ / TÜRÜ",null,{"$f":"IF($H$2=0,0,VLOOKUP($H$2,P!C1:G952,5,FALSE))","v":"Bakteri "}]
[null,null,"BİYOLOJİK KORUMA SEVİYESİ",null,{"$f":"IF($H$2=0,0,VLOOKUP($H$2,P!C1:F952,2,FALSE))","v":2}]
[null,null,"HAYVANSAL BİYOLOJİK KORUMA SEVİYESİ",{"$f":"IF($H$2=0,0,VLOOKUP($H$2,P!C1:F952,3,FALSE))","v":2},{"$f":"IF(D5=0,\"\",D5)","v":2}]
[null,null,"EK ÖNLEMLER",{"$f":"IF($H$2=0,0,VLOOKUP($H$2,P!C1:F952,4,FALSE))","v":"BMBL"},{"$f":"IF(D6=0,\"\",D6)","v":"BMBL"}]
[]
["BMBL",":","Amerikan Sağlık Bakanlığı, Ulusal Sağlık Enstitüsü, Hastalıkları Kontrol ve Önleme Merkezi'nin Mikrobiyolojik Güvenlik"]
[null,null,"ve Koruma Seviyeleri Kitabı'ndan alınmıştır."]
["TMC",":","Türk Mikrobiyoloji Cemiyeti Dergisinden alınmıştır (2003)"]
["BSC",":","Biyolojik Koruma Kabini (laminer kabin)"]
["*",":","Ek önlemler gerekebilir !"]
["a",":","Korunma gereklilikleri virüs yoğunluğuna, hayvan deneklere veya virüs tipine göre çok değişkendir. Hantanvirus için detaylar incelenmelidir."]
["b",":","Virüs cinsinde geçici yerleşimdedir."]
["c",":","Bu mikroorganizmalar, USDA tarafından zirai patojen olarak değerlendirilmektedir ve bu nedenle ek olarak BSL 3 seviyesinde"]
[null,null,"koruma gerektirebilirler. Çalışma yapmadan önce USDA'ya danışılmalıdır."]
["d",":","Ganjam virus'ünün bir diğer adıdır !"]
["e",":","Garissa virüsü bu virüsün ayırıcısıdır, bu nedenle aynı koruma sınıfı gereklidir !"]
["f",":","Antijen grupları A, B, and C olarak Casals, Brown, and Whitman tarfından bilinen arbovirüslere karşı karşı-reaksiyona girebilme"]
[null,null,"durumuna karşı sınıflandırılmışlardır. Grup A virüsler Alphavirus ailesindendir, grup B virüsler Flaviviridae ailesindendir,"]
[null,null,"ve grup C virüsler is Bunyaviridae ailesindendir."]

{"sheet":"BAKTERI","index":2,"n_rows":62,"n_cols":5,"rows_kept":62,"cut":false,"hidden":true,"merged":[]}
[1,"Actinetobacter calceticus",2,2]
[1,"Actinobacillus sp.",2,2]
[1,"Actinomyces sp.",2,2]
[1,"Aeromaonas sp.",2,2]
[1,"Arachnida propionica",2,2]
[1,"Bacillus alvei",2,2]
[1,"Bacillus anthracis*",2,"2008-03-02","BMBL, vaccination recommended"]
[1,"Bacteroides sp.",2,2]
[1,"Bartonella sp.",3,3]
[1,"Bordetella sp.",2,2]
[1,"Bordetella pertussis",2,"2008-03-02","BMBL"]
[1,"Borrelia sp.",2,2]
[1,"Brucella sp.*","2008-03-02",3,"BMBL"]
[1,"Campylobacter fetus var. jejuni",2,2,"BMBL"]
[1,"Camplobacter sp.",2,2]
[1,"Chlamydia psittaci",2,3,"BMBL"]
[1,"Chlamydia pneumoniae","2008-03-02",2,"BMBL"]
[1,"Chlamydia trachomatis",3,3]
[1,"Clostridium botulinum*","2008-03-02",2,"BMBL"]
[1,"Clostridium tetani",2,null,"BMBL"]
[1,"Corynebacterium diphtheriae",2,2,"BMBL"]
[1,"Corynebacterium equi",2,2]
[1,"Corynebacterium haemolyticum",2,2]
[1,"Corynebacterium pseudotuberculosis",2,2]
[1,"Corynebacterium pysogenes",2,2]
[1,"Corynebacterium renale",2,2]
[1,"Enterobacteriaceae all other",2,2]
[1,"Erysipelothrix rhusiopathiae",2,2]
[1,"Escherichia coli",2,2]
[1,"Escherichia coli K12 derivative",1,1]
[1,"Francisella tularensis*","2008-03-02",3,"BMBL"]
[1,"Fusobacterium sp.",2,2]
[1,"Haemophilus sp.",2,2]
[1,"Klebsiella sp.",2,2]
[1,"Legionella pneumophilia","2-3",2,"BMBL"]
[1,"Leptospira interrogans all servars",2,2,"BMBL"]
[1,"Listeria sp.",2,2]
[1,"Moraxella sp.",2,2]
[1,"Mycobacterium avium",2,2]
[1,"Mycobacterium bovis",3,3,"BMBL"]
[1,"Mycobacterium leprae",2,2,"BMBL"]
[1,"Mycobacterium sp.",2,2,"BMBL"]
[1,"Mycobacterium tuberculosis","2-3","2-3","BMBL"]
[1,"Mycoplasma sp.",2,2]
[1,"Neisseria gonorrhoreae","2-3",2,"BMBL"]
[1,"Neisseria menegitidis","2-3",2,"BMBL"]
[1,"Nocardia sp.",2,2]
[1,"Pasteurella sp.",2,2]
[1,"Pseudomonas mallei","2-3",3,"BMBL"]
[1,"Neisseria gonorrhoeae","2-3",2,"BMBL"]
[1,"Pseudomonas testoserone",2,2]
[1,"Rotococcus (Coryne.) equi",2,2]
[1,"Salmonella sp.",2,2,"BMBL"]
[1,"Salmonella typhi","2-3",2,"BMBL"]
[1,"Shigella sp.",2,2,"BMBL"]
[1,"Staphylococcus sp.",2,2]
[1,"Streptococcus sp.",2,2]
[1,"Streptocacillus moniliformis",2,2]
[1,"Streptomyces somaliensis",2,2]
[1,"Treponema pallidum",2,2,"BMBL"]
[1,"Vibrio sp.",2,2,"BMBL"]
[1,"Yersinia pestis*","2-3",3,"BMBL, immunization recommended"]

{"sheet":"MANTAR","index":3,"n_rows":11,"n_cols":5,"rows_kept":11,"cut":false,"hidden":true,"merged":[]}
[2,"Blastomyces dermatitides",2,2,"BMBL"]
[2,"Coccidioides immitis*","2-3",2,"BMBL"]
[2,"Cryptococcus neoformans",2,2,"BMBL"]
[2,"Epidermophyton - pathogenic sp.",2,2,"BMBL"]
[2,"Histoplasma capsulatum","2-3",2,"BMBL"]
[2,"Microsporum - pathogenic sp.",2,2,"BMBL"]
[2,"Paracoccidioides brasilienisis",2,2]
[2,"Sporothrix schenckii",2,2,"BMBL"]
[2,"Trichophyton - pathogenic sp.",2,2,"BMBL"]
[2,"Candida albicans",2,2]
[2,"Miscellaneous Molds",2,null,"BMBL"]

{"sheet":"PARAZIT","index":4,"n_rows":24,"n_cols":5,"rows_kept":24,"cut":false,"hidden":true,"merged":[]}
[3,"Anaplasma sp.",2,2]
[3,"Ascaris sp.",2,2,"BMBL"]
[3,"Coccidia sp.",2,2,"BMBL"]
[3,"Cryptosporidia sp.",2,2,"BMBL"]
[3,"Echinococcus Granulosus",2,2,"BMBL"]
[3,"Ehrlichia sp.",2,2]
[3,"Entamoeba sp.",2,2,"BMBL"]
[3,"Enterobius sp.",2,2,"BMBL"]
[3,"Fasciola sp.",2,2,"BMBL"]
[3,"Giardia sp.",2,2,"BMBL"]
[3,"Haemobartonella sp.",2,2]
[3,"Hymenolepsis nana",2,2,"BMBL"]
[3,"Leishmania sp.",2,2,"BMBL"]
[3,"Leukocytozoon sp.",2,2]
[3,"Naegleria sp.",2,2]
[3,"Plasmodium sp.",2,2,"BMBL"]
[3,"Sarcocystis sp.",2,2,"BMBL"]
[3,"Schistosoma sp.",2,2,"BMBL"]
[3,"Strongyloides sp.",2,2,"BMBL"]
[3,"Taenia solium",2,2]
[3,"Toxocara canis",2,2]
[3,"Toxoplasma sp.",2,2,"BMBL"]
[3,"Trichinella spiralis",2,2,"BMBL"]
[3,"Trypanosoma sp.",2,2,"BMBL"]

{"sheet":"RIKETSIYA","index":5,"n_rows":13,"n_cols":5,"rows_kept":13,"cut":false,"hidden":true,"merged":[]}
[4,"oxiella burnetii*","2-3",3,"BMBL"]
[4,"Rickettsia akari","2-3","2-3"]
[4,"Rickettsia australis","2-3","2-3","BMBL"]
[4,"Rickettsia canada","2-3","2-3","BMBL"]
[4,"Rickettsia conorii","2-3","2-3","BMBL"]
[4,"Rickettsia prowazekii*","2-3","2-3","BMBL"]
[4,"Rickettsia rickettsii*","2-3","2-3","BMBL"]
[4,"Rickettsia siberica","2-3","2-3","BMBL"]
[4,"Rickettsia tsutsugamushi","2-3","2-3","BMBL"]
[4,"Rickettsia typhi (R. mooseri)","2-3","2-3","BMBL"]
[4,"Rochalimaea quintana",2,2]
[4,"Rochalimaea vinsonii",2,2]
[4,"Spotted Fever Group - other","2-3","2-3"]

{"sheet":"VIRUS","index":6,"n_rows":98,"n_cols":5,"rows_kept":98,"cut":false,"hidden":true,"merged":[]}
[null,"Adenoviruses",2,2]
[null,"Adenoviruses - animal - all",2,2]
[null,"Aleutian Disease Virus",2,2]
[null,"Arboviruses - certain",2,2,"BMBL"]
[null,"Arboviruses - certain",3,3,"BMBL"]
[null,"Arboviruses - certain",4,4,"BMBL"]
[null,"Arenaviruses - certain",3,3,"BMBL"]
[null,"Arenaviruses - certain",4,4,"BMBL"]
[null,"Avian Erthyroblastosis Virus",2,2]
[null,"Avian Leucosis Virus",2,2]
[null,"Avian Lymphomatosis Virus",2,2]
[null,"Avian Myeloblasotosos Virus",2,2]
[null,"Bovine Encephalomyelitis Virus",2,2]
[null,"Bovine Leukemia Virus",2,2]
[null,"Bovine Respiratory Syncytial Virus",2,2]
[null,"Bovine Rhinotracheitis (IBR)",2,2]
[null,"Cache Valley Virus",2,2,"BMBL"]
[null,"Canine Hepatitis Virus",2,2]
[null,"Canine Distemper Virus",2,2]
[null,"Caprine Arthritis",2,2]
[null,"Coxsackie A & B Viruses",2,2]
[null,"Cytomegaloviruses",2,2]
[null,"Encephalomyelitis Virus*",2,2]
[null,"Echovirus",2,2]
[null,"Dengue Virus",2,3,"BMBL"]
[null,"Encephalomyocarditis Virus",2,2]
[null,"Epidemic Diarrhea Infant Mice",2,2]
[null,"Epstein-Barr Virus",2,2]
[null,"Feline Leukemia Virus",2,2]
[null,"Feline Sarcoma Virus",2,2]
[null,"Filoviruses",2,2]
[null,"Flanders Virus",2,2,"BMBL"]
[null,"Gibbon Ape Lymphosarcoma",2,2]
[null,"Hart Park Virus",2,2,"BMBL"]
[null,"Hemorrhagic Fever Agents*",2,2]
[null,"Hepatitis A Virus, Hepatitis E Virus",2,2,"BMBL"]
[null,"Hepatitis B Virus, Hepatitis C Virus, Hepatitis D Virus",2,2,"BMBL"]
[null,"Herpesvirus - other",2,2]
[null,"Herpesvirus ateles",2,2]
[null,"Herpesvirus saimir",2,2]
[null,"Herpesvirus Simiae (B-virus)",3,3,"BSL-2, -3 or -4 depending on activity, BMBL"]
[null,"Human Herpesviruses",2,2,"BMBL"]
[null,"Hog Cholera Virus",2,2]
[null,"Human T-Cell Leukemia Virus I & II",2,2]
[null,"Infectious Bronchitis Virus",2,2]
[null,"Influenza Virus",2,2,"BMBL"]
[null,"Influenza Virus Virulent Avian",3,3]
[null,"K (Rate) Virus",2,2]
[null,"Lactic Dehydrogenase Elevating",2,2]
[null,"Langat Virus",2,2,"BMBL"]
[null,"Laryngotracheitis Virus",2,2]
[null,"Lassa Virus*",4,4,"BMBL"]
[null,"Low Risk Oncogenic Viruses",2,2]
[null,"Lymphocytic Choriomeningitis Virus","2-3","2-3","BMBL"]
[null,"Marburg Virus*",4,4,"BMBL"]
[null,"Measles Virus",2,2]
[null,"Memingopneumonitis Virus",2,2]
[null,"Mouse Encephalomyelitis Virus",2,2]
[null,"Mouse Hepatitis Virus",2,2]
[null,"Mouse Leukemia Virus",2,2]
[null,"Mouse Pneumonia Virus",2,2]
[null,"Mumps Virus",2,2]
[null,"Myxomatosis Virus",2,2]
[null,"Newcastle Disease Virus",2,2]
[null,"Newcastle Disease Virus (VVND)",2,2]
[null,"Non-Defective Adenovirus 2SV40 HYB",2,2]
[null,"Papilloma Virus Shope",2,2]
[null,"Parainfluenza Virus",2,2]
[null,"Poliovirus - all types",2,2,"BMBL"]
[null,"Polyoma Virus",2,2]
[null,"Poxvirus alastrim",2,2]
[null,"Poxvirus monkey pox",3,3]
[null,"Poxvirus - Smallpox*",null,null,"restricted use by WHO"]
[null,"Poxvirus sp.",2,2,"BMBL"]
[null,"Pseudorabies Virus",2,2]
[null,"Rabies Virus","2-3","2-3","BMBL"]
[null,"Reovirus sp.",2,2]
[null,"Respiratory Syncytial Virus",2,2]
[null,"Retroviruses, including HIV & SIV","2-3","2-3","BMBL"]
[null,"Rhinovirus sp.",2,2]
[null,"Rous Sarcoma Virus",2,2]
[5,"Rubella Virus",2,2]
[5,"Simian Virus - other",2,2]
[5,"Simian T-Cell Leukemia Virus",2,2]
[5,"Sindbis Virus",2,2]
[5,"Slow Viruses",2,2]
[5,"Tensaw Virus",2,2]
[5,"Tick-Borne Encephalitis Complex",4,4]
[5,"Transmissible Spongiform Encephalopathies (Creutzfeldt-Jakob, kuru, and related agents",2,2,"BMBL"]
[5,"Turlock Virus",2,2]
[5,"Vaccinia Virus",2,2]
[5,"Venezuelan Equine Encephalitis*",3,3]
[5,"Vesicular Stomatitis - lab adapted",2,2,"BMBL"]
[5,"Vesicular Somatitis Virus",3,3,"BMBL"]
[5,"Woolly Monkey Fibrosarcoma",3,3]
[5,"Yaba Virus",2,2]
[5,"Yellow Fever Virus 17D Strain*",2,2,"BMBL"]
[5,"Yellow Fever Virus Except 17D*",3,3,"BMBL"]

{"sheet":"PRION","index":7,"n_rows":1,"n_cols":1,"rows_kept":1,"cut":false,"hidden":true,"merged":[]}
[6]

{"sheet":"TOKSIN","index":8,"n_rows":1,"n_cols":1,"rows_kept":1,"cut":false,"hidden":true,"merged":[]}
[7]

{"sheet":"A","index":9,"n_rows":8,"n_cols":2,"rows_kept":8,"cut":false,"hidden":true,"merged":[]}
["BAKTERİ",1]
["MANTAR",2]
["PARAZİT",3]
["RİKETSİYA",4]
["VİRÜS",5]
["PRİON",6]
["TOKSİN",7]
["BÜTÜN MİKROORGANİZMALAR",8]

{"sheet":"B","index":10,"n_rows":76,"n_cols":11,"rows_kept":76,"cut":false,"hidden":true,"merged":[]}
["MİKROORGANİZMA","KOD","PATOJEN",null,null,null,null,null,null,"BSL","ABSL"]
["BAKTERİ",{"$f":"IF(A2=0,0,VLOOKUP(A2,A!A1:B8,2,FALSE))","v":1},{"$f":"IF($B$2=0,0,VLOOKUP($B$2,BAKTERI!A1:E62,2,FALSE))","v":"Actinetobacter calceticus"},{"$f":"IF($B$2=0,0,VLOOKUP($B$2,MANTAR!A1:E11,2,FALSE))","v":{"$error":"#N/A"}}]
[null,null,{"$f":"IF($B$2=0,0,VLOOKUP($B$2,BAKTERI!A1:E63,2,FALSE))","v":"Actinetobacter calceticus"}]
[null,null,{"$f":"IF($B$2=0,0,VLOOKUP($B$2,BAKTERI!A2:E64,2,FALSE))","v":"Actinobacillus sp."}]
[null,null,{"$f":"IF($B$2=0,0,VLOOKUP($B$2,BAKTERI!A3:E65,2,FALSE))","v":"Actinomyces sp."}]
[null,null,{"$f":"IF($B$2=0,0,VLOOKUP($B$2,BAKTERI!A4:E66,2,FALSE))","v":"Aeromaonas sp."}]
[null,null,{"$f":"IF($B$2=0,0,VLOOKUP($B$2,BAKTERI!A5:E67,2,FALSE))","v":"Arachnida propionica"}]
[null,null,{"$f":"IF($B$2=0,0,VLOOKUP($B$2,BAKTERI!A6:E68,2,FALSE))","v":"Bacillus alvei"}]
[null,null,{"$f":"IF($B$2=0,0,VLOOKUP($B$2,BAKTERI!A7:E69,2,FALSE))","v":"Bacillus anthracis*"}]
[null,null,{"$f":"IF($B$2=0,0,VLOOKUP($B$2,BAKTERI!A8:E70,2,FALSE))","v":"Bacteroides sp."}]
[null,null,{"$f":"IF($B$2=0,0,VLOOKUP($B$2,BAKTERI!A9:E71,2,FALSE))","v":"Bartonella sp."}]
[null,null,{"$f":"IF($B$2=0,0,VLOOKUP($B$2,BAKTERI!A10:E72,2,FALSE))","v":"Bordetella sp."}]
[null,null,{"$f":"IF($B$2=0,0,VLOOKUP($B$2,BAKTERI!A11:E73,2,FALSE))","v":"Bordetella pertussis"}]
[null,null,{"$f":"IF($B$2=0,0,VLOOKUP($B$2,BAKTERI!A12:E74,2,FALSE))","v":"Borrelia sp."}]
[null,null,{"$f":"IF($B$2=0,0,VLOOKUP($B$2,BAKTERI!A13:E75,2,FALSE))","v":"Brucella sp.*"}]
[null,null,{"$f":"IF($B$2=0,0,VLOOKUP($B$2,BAKTERI!A14:E76,2,FALSE))","v":"Campylobacter fetus var. jejuni"}]
[null,null,{"$f":"IF($B$2=0,0,VLOOKUP($B$2,BAKTERI!A15:E77,2,FALSE))","v":"Camplobacter sp."}]
[null,null,{"$f":"IF($B$2=0,0,VLOOKUP($B$2,BAKTERI!A16:E78,2,FALSE))","v":"Chlamydia psittaci"}]
[null,null,{"$f":"IF($B$2=0,0,VLOOKUP($B$2,BAKTERI!A17:E79,2,FALSE))","v":"Chlamydia pneumoniae"}]
[null,null,{"$f":"IF($B$2=0,0,VLOOKUP($B$2,BAKTERI!A18:E80,2,FALSE))","v":"Chlamydia trachomatis"}]
[null,null,{"$f":"IF($B$2=0,0,VLOOKUP($B$2,BAKTERI!A19:E81,2,FALSE))","v":"Clostridium botulinum*"}]
[null,null,{"$f":"IF($B$2=0,0,VLOOKUP($B$2,BAKTERI!A20:E82,2,FALSE))","v":"Clostridium tetani"}]
[null,null,{"$f":"IF($B$2=0,0,VLOOKUP($B$2,BAKTERI!A21:E83,2,FALSE))","v":"Corynebacterium diphtheriae"}]
[null,null,{"$f":"IF($B$2=0,0,VLOOKUP($B$2,BAKTERI!A22:E84,2,FALSE))","v":"Corynebacterium equi"}]
[null,null,{"$f":"IF($B$2=0,0,VLOOKUP($B$2,BAKTERI!A23:E85,2,FALSE))","v":"Corynebacterium haemolyticum"}]
[null,null,{"$f":"IF($B$2=0,0,VLOOKUP($B$2,BAKTERI!A24:E86,2,FALSE))","v":"Corynebacterium pseudotuberculosis"}]
[null,null,{"$f":"IF($B$2=0,0,VLOOKUP($B$2,BAKTERI!A25:E87,2,FALSE))","v":"Corynebacterium pysogenes"}]
[null,null,{"$f":"IF($B$2=0,0,VLOOKUP($B$2,BAKTERI!A26:E88,2,FALSE))","v":"Corynebacterium renale"}]
[null,null,{"$f":"IF($B$2=0,0,VLOOKUP($B$2,BAKTERI!A27:E89,2,FALSE))","v":"Enterobacteriaceae all other"}]
[null,null,{"$f":"IF($B$2=0,0,VLOOKUP($B$2,BAKTERI!A28:E90,2,FALSE))","v":"Erysipelothrix rhusiopathiae"}]
[null,null,{"$f":"IF($B$2=0,0,VLOOKUP($B$2,BAKTERI!A29:E91,2,FALSE))","v":"Escherichia coli"}]
[null,null,{"$f":"IF($B$2=0,0,VLOOKUP($B$2,BAKTERI!A30:E92,2,FALSE))","v":"Escherichia coli K12 derivative"}]
[null,null,{"$f":"IF($B$2=0,0,VLOOKUP($B$2,BAKTERI!A31:E93,2,FALSE))","v":"Francisella tularensis*"}]
[null,null,{"$f":"IF($B$2=0,0,VLOOKUP($B$2,BAKTERI!A32:E94,2,FALSE))","v":"Fusobacterium sp."}]
[null,null,{"$f":"IF($B$2=0,0,VLOOKUP($B$2,BAKTERI!A33:E95,2,FALSE))","v":"Haemophilus sp."}]
[null,null,{"$f":"IF($B$2=0,0,VLOOKUP($B$2,BAKTERI!A34:E96,2,FALSE))","v":"Klebsiella sp."}]
[null,null,{"$f":"IF($B$2=0,0,VLOOKUP($B$2,BAKTERI!A35:E97,2,FALSE))","v":"Legionella pneumophilia"}]
[null,null,{"$f":"IF($B$2=0,0,VLOOKUP($B$2,BAKTERI!A36:E98,2,FALSE))","v":"Leptospira interrogans all servars"}]
[null,null,{"$f":"IF($B$2=0,0,VLOOKUP($B$2,BAKTERI!A37:E99,2,FALSE))","v":"Listeria sp."}]
[null,null,{"$f":"IF($B$2=0,0,VLOOKUP($B$2,BAKTERI!A38:E100,2,FALSE))","v":"Moraxella sp."}]
[null,null,{"$f":"IF($B$2=0,0,VLOOKUP($B$2,BAKTERI!A39:E101,2,FALSE))","v":"Mycobacterium avium"}]
[null,null,{"$f":"IF($B$2=0,0,VLOOKUP($B$2,BAKTERI!A40:E102,2,FALSE))","v":"Mycobacterium bovis"}]
[null,null,{"$f":"IF($B$2=0,0,VLOOKUP($B$2,BAKTERI!A41:E103,2,FALSE))","v":"Mycobacterium leprae"}]
[null,null,{"$f":"IF($B$2=0,0,VLOOKUP($B$2,BAKTERI!A42:E104,2,FALSE))","v":"Mycobacterium sp."}]
[null,null,{"$f":"IF($B$2=0,0,VLOOKUP($B$2,BAKTERI!A43:E105,2,FALSE))","v":"Mycobacterium tuberculosis"}]
[null,null,{"$f":"IF($B$2=0,0,VLOOKUP($B$2,BAKTERI!A44:E106,2,FALSE))","v":"Mycoplasma sp."}]
[null,null,{"$f":"IF($B$2=0,0,VLOOKUP($B$2,BAKTERI!A45:E107,2,FALSE))","v":"Neisseria gonorrhoreae"}]
[null,null,{"$f":"IF($B$2=0,0,VLOOKUP($B$2,BAKTERI!A46:E108,2,FALSE))","v":"Neisseria menegitidis"}]
[null,null,{"$f":"IF($B$2=0,0,VLOOKUP($B$2,BAKTERI!A47:E109,2,FALSE))","v":"Nocardia sp."}]
[null,null,{"$f":"IF($B$2=0,0,VLOOKUP($B$2,BAKTERI!A48:E110,2,FALSE))","v":"Pasteurella sp."}]
[null,null,{"$f":"IF($B$2=0,0,VLOOKUP($B$2,BAKTERI!A49:E111,2,FALSE))","v":"Pseudomonas mallei"}]
[null,null,{"$f":"IF($B$2=0,0,VLOOKUP($B$2,BAKTERI!A50:E112,2,FALSE))","v":"Neisseria gonorrhoeae"}]
[null,null,{"$f":"IF($B$2=0,0,VLOOKUP($B$2,BAKTERI!A51:E113,2,FALSE))","v":"Pseudomonas testoserone"}]
[null,null,{"$f":"IF($B$2=0,0,VLOOKUP($B$2,BAKTERI!A52:E114,2,FALSE))","v":"Rotococcus (Coryne.) equi"}]
[null,null,{"$f":"IF($B$2=0,0,VLOOKUP($B$2,BAKTERI!A53:E115,2,FALSE))","v":"Salmonella sp."}]
[null,null,{"$f":"IF($B$2=0,0,VLOOKUP($B$2,BAKTERI!A54:E116,2,FALSE))","v":"Salmonella typhi"}]
[null,null,{"$f":"IF($B$2=0,0,VLOOKUP($B$2,BAKTERI!A55:E117,2,FALSE))","v":"Shigella sp."}]
[null,null,{"$f":"IF($B$2=0,0,VLOOKUP($B$2,BAKTERI!A56:E118,2,FALSE))","v":"Staphylococcus sp."}]
[null,null,{"$f":"IF($B$2=0,0,VLOOKUP($B$2,BAKTERI!A57:E119,2,FALSE))","v":"Streptococcus sp."}]
[null,null,{"$f":"IF($B$2=0,0,VLOOKUP($B$2,BAKTERI!A58:E120,2,FALSE))","v":"Streptocacillus moniliformis"}]
[null,null,{"$f":"IF($B$2=0,0,VLOOKUP($B$2,BAKTERI!A59:E121,2,FALSE))","v":"Streptomyces somaliensis"}]
[null,null,{"$f":"IF($B$2=0,0,VLOOKUP($B$2,BAKTERI!A60:E122,2,FALSE))","v":"Treponema pallidum"}]
[null,null,{"$f":"IF($B$2=0,0,VLOOKUP($B$2,BAKTERI!A61:E123,2,FALSE))","v":"Vibrio sp."}]
[null,null,{"$f":"IF($B$2=0,0,VLOOKUP($B$2,BAKTERI!A62:E124,2,FALSE))","v":"Yersinia pestis*"}]
[null,null,{"$f":"IF($B$2=0,0,VLOOKUP($B$2,BAKTERI!A63:E125,2,FALSE))","v":{"$error":"#N/A"}}]
[null,null,{"$f":"IF($B$2=0,0,VLOOKUP($B$2,BAKTERI!A64:E126,2,FALSE))","v":{"$error":"#N/A"}}]
[null,null,{"$f":"IF($B$2=0,0,VLOOKUP($B$2,BAKTERI!A65:E127,2,FALSE))","v":{"$error":"#N/A"}}]
[null,null,{"$f":"IF($B$2=0,0,VLOOKUP($B$2,BAKTERI!A66:E128,2,FALSE))","v":{"$error":"#N/A"}}]
[null,null,{"$f":"IF($B$2=0,0,VLOOKUP($B$2,BAKTERI!A67:E129,2,FALSE))","v":{"$error":"#N/A"}}]
[null,null,{"$f":"IF($B$2=0,0,VLOOKUP($B$2,BAKTERI!A68:E130,2,FALSE))","v":{"$error":"#N/A"}}]
[null,null,{"$f":"IF($B$2=0,0,VLOOKUP($B$2,BAKTERI!A69:E131,2,FALSE))","v":{"$error":"#N/A"}}]
[null,null,{"$f":"IF($B$2=0,0,VLOOKUP($B$2,BAKTERI!A70:E132,2,FALSE))","v":{"$error":"#N/A"}}]
[null,null,{"$f":"IF($B$2=0,0,VLOOKUP($B$2,BAKTERI!A71:E133,2,FALSE))","v":{"$error":"#N/A"}}]
[null,null,{"$f":"IF($B$2=0,0,VLOOKUP($B$2,BAKTERI!A72:E134,2,FALSE))","v":{"$error":"#N/A"}}]
[null,null,{"$f":"IF($B$2=0,0,VLOOKUP($B$2,BAKTERI!A73:E135,2,FALSE))","v":{"$error":"#N/A"}}]
[null,null,{"$f":"IF($B$2=0,0,VLOOKUP($B$2,BAKTERI!A74:E136,2,FALSE))","v":{"$error":"#N/A"}}]